Workbook

Sheet Amerikanske
A1: Tittel | B1: Årstall | C1: Nummer | D1: Kvalitet | E1: Pris i Norske kr. | F1: Pence
A2: 2001 Space Odyssey | B2: 1976 | C2: 5 | D2: FN | E2: 100
A3: 2001 Space Odyssey | B3: 1976 | C3: 6 | D3: FN | E3: 100 | F3: 12p
A4: 1st Issue Special | B4: 1975 | C4: 5 | D4: VF | E4: 35
A5: 1st Issue Special | B5: 1975 | C5: 5 | D5: VF | E5: 150
A6: 1st Issue Special | B6: 1975 | C6: 1 | D6: VF | E6: 150
A7: 1st Issue Special | B7: 1975 | C7: 1 | D7: VF | E7: 150
A8: 1st Issue Special | B8: 1975 | C8: 6 | D8: VF | E8: 150
A9: 1st Issue Special | B9: 1975 | C9: 7 | D9: VF | E9: 125
A10: 1st Issue Special | B10: 1975 | C10: 2 | D10: VF | E10: 90
A11: 1st Issue Special | B11: 1975 | C11: 2 | D11: VF | E11: 90
A12: 1st Issue Special | B12: 1975 | C12: 3 | D12: VF | E12: 100
A13: 1st Issue Special | B13: 1975 | C13: 3 | D13: VF | E13: 100
A14: 1st Issue Special | B14: 1975 | C14: 5 | D14: FN | E14: 60
A15: 1st Issue Special | B15: 1975 | C15: 4 | D15: VF | E15: 50
A16: 1st Issue Special | B16: 1975 | C16: 4 | D16: VF | E16: 50
A17: 1st Issue Special | B17: 1975 | C17: 7 | D17: FN | E17: 50
A18: 1st Issue Special | B18: 1976 | C18: 10 | D18: FN | E18: 40
A19: 1st Issue Special | B19: 1975 | C19: 6 | D19: VG | E19: 25
A20: 1st Issue Special | B20: 1975 | C20: 9 | D20: GD | E20: 20
A21: Action Comics | B21: 1974 | C21: 443 | D21: FN | E21: 30
A22: Action Comics | B22: 1961 | C22: 281 | D22: Fair | E22: 100
A23: Action Comics | B23: 1969 | C23: 377 | D23: VG | E23: 100
A24: Action Comics | B24: 1972 | C24: 414 | D24: FN | E24: 100
A25: Action Comics | B25: 1973 | C25: 425 | D25: FN | E25: 75
A26: Action Comics | B26: 1967 | C26: 356 | D26: GD | E26: 50
A27: Action Comics | B27: 1974 | C27: 447 | D27: VF | E27: 60
A28: Action Comics | B28: 1976 | C28: 461 | D28: VF | E28: 30
A29: Action Comics | B29: 1973 | C29: 421 | D29: FN | E29: 30
A30: Action Comics | B30: 1973 | C30: 426 | D30: FN | E30: 30
A31: Action Comics | B31: 1974 | C31: 438 | D31: FN | E31: 30
A32: Action Comics | B32: 1983 | C32: 550 | D32: VF | E32: 20
A33: Action Comics | B33: 1974 | C33: 442 | D33: VG | E33: 20
A34: Action Comics | B34: 1976 | C34: 462 | D34: VG | E34: 20
A35: Adventure comics | B35: 1975 | C35: 438 | D35: FN | E35: 100
A36: Adventure comics | B36: 1975 | C36: 439 | D36: FN | E36: 100
A37: Adventure comics | B37: 1974 | C37: 436 | D37: FN | E37: 80
A38: Adventure comics | B38: 1975 | C38: 437 | D38: FN | E38: 80
A39: Adventure comics | B39: 1972 | C39: 414 | D39: FN | E39: 80
A40: Adventure comics | B40: 1974 | C40: 432 | D40: FN | E40: 80
A41: Adventure comics | B41: 1977 | C41: 450 | D41: VF | E41: 75
A42: Adventure comics | B42: 1977 | C42: 451 | D42: VF | E42: 75
A43: Adventure comics | B43: 1977 | C43: 453 | D43: VF | E43: 75
A44: Adventure comics | B44: 1978 | C44: 456 | D44: VF | E44: 75
A45: Adventure comics | B45: 1978 | C45: 457 | D45: VF | E45: 75
A46: Adventure comics | B46: 1978 | C46: 458 | D46: VF | E46: 75
A47: Adventure comics | B47: 1974 | C47: 435 | D47: VG | E47: 40
A48: Adventure comics | B48: 1975 | C48: 438 | D48: VG | E48: 40
A49: Adventure comics | B49: 1978 | C49: 454 | D49: FN | E49: 40
A50: Adventure comics | B50: 1978 | C50: 455 | D50: FN | E50: 40
A51: Adventure comics | B51: 1975 | C51: 438 | D51: GD | E51: 20
A52: All American men of war | B52: 1954 | C52: 9 | D52: Fair | E52: 350
A53: Amazing Adventures | B53: 1972 | C53: 12 | D53: VF | E53: 400
A54: Amazing Adventures | B54: 1974 | C54: 24 | D54: VF | E54: 50
A55: Amazing Adventures | B55: 1975 | C55: 32 | D55: FN | E55: 40
A56: Amazing Adventures | B56: 1976 | C56: 38 | D56: VF | E56: 40
A57: Amazing Adventures | B57: 1976 | C57: 35 | D57: VF | E57: 40
A58: Aquaman | B58: 1966 | C58: 28 | D58: GD | E58: 100
A59: Aquaman | B59: 1970 | C59: 50 | D59: Fair | E59: 40
A60: Arak son of thunder | B60: 1981 | C60: 1 | D60: VF | E60: 25
A61: Arion lord of atlantis | B61: 1982 | C61: 1 | D61: VF | E61: 25
A62: Aristokittens | B62: 1975 | C62: 8 | D62: VF | E62: 100
A63: Aristokittens | B63: 1975 | C63: 9 | D63: FN | E63: 75
A64: Arrgh | B64: 1975 | C64: 4 | D64: VF | E64: 100
A65: Arrgh | B65: 1975 | C65: 5 | D65: VF | E65: 100
A66: Astonishing Tales | B66: 1971 | C66: 12 | D66: FN | E66: 75 | F66: 6
A67: Astonishing Tales | B67: 1970 | C67: 5 | D67: FN | E67: 125
A68: Astonishing Tales | B68: 1975 | C68: 28 | D68: VF | E68: 125
A69: Astonishing Tales | B69: 1975 | C69: 30 | D69: VF | E69: 125
A70: Astonishing Tales | B70: 1975 | C70: 30 | D70: VF | E70: 125
A71: Astonishing Tales | B71: 1975 | C71: 31 | D71: VF | E71: 100
A72: Astonishing Tales | B72: 1975 | C72: 32 | D72: VF | E72: 100
A73: Astonishing Tales | B73: 1976 | C73: 36 | D73: VF | E73: 100 | F73: 10p
A74: Astonishing Tales | B74: 1975 | C74: 30 | D74: FN | E74: 75
A75: Astonishing Tales | B75: 1976 | C75: 36 | D75: FN | E75: 50
A76: Astonishing Tales | B76: 1972 | C76: 15 | D76: VG | E76: 20
A77: Atom | B77: 1966 | C77: 27 | D77: GD | E77: 60
A78: Attack | B78: 1958 | C78: 54 | D78: GD | E78: 100
A79: Avengers | B79: 1970 | C79: 73 | D79: GD | E79: 150
A80: Avengers | B80: 1973 | C80: 192 | D80: VG | E80: 25
A81: Avengers | B81: 1974 | C81: 193 | D81: VG | E81: 25
A82: Avengers Marvel treasury Edition | B82: 1975 | C82: 7 | D82: FN | E82: 150
A83: Baby Snoots | B83: 1975 | C83: 12 | D83: VF | E83: 50
A84: Barney and Betty | B84: 1976 | C84: 21 | D84: VF | E84: 75 | F84: 10p
A85: Batman | B85: 1974 | C85: 259 | D85: VF | E85: 500
A86: Batman | B86: 1975 | C86: 262 | D86: VF | E86: 400
A87: Batman | B87: 1971 | C87: 233 | D87: GD | E87: 100
A88: Batman | B88: 1971 | C88: 236 | D88: GD | E88: 100
A89: Batman | B89: 1976 | C89: 268 | D89: VF | E89: 100
A90: Batman | B90: 1977 | C90: 287 | D90: VF | E90: 100
A91: Batman | B91: 1977 | C91: 290 | D91: VF | E91: 100
A92: Batman | B92: 1980 | C92: 321 | D92: VF | E92: 100
A93: Batman | B93: 1979 | C93: 316 | D93: VF | E93: 80
A94: Batman | B94: 1979 | C94: 316 | D94: VF | E94: 80
A95: Batman | B95: 1980 | C95: 322 | D95: VF | E95: 80
A96: Batman | B96: 1975 | C96: 267 | D96: FN | E96: 75
A97: Batman | B97: 1977 | C97: 289 | D97: FN | E97: 75
A98: Batman | B98: 1979 | C98: 309 | D98: VF | E98: 75
A99: Batman | B99: 1979 | C99: 317 | D99: VF | E99: 75
A100: Batman | B100: 1979 | C100: 317 | D100: VF | E100: 75
A101: Batman | B101: 1979 | C101: 318 | D101: VF | E101: 75
A102: Batman | B102: 1979 | C102: 318 | D102: VF | E102: 75
A103: Batman | B103: 1980 | C103: 319 | D103: VF | E103: 75
A104: Batman | B104: 1980 | C104: 319 | D104: VF | E104: 75
A105: Batman | B105: 1980 | C105: 320 | D105: VF | E105: 75
A106: Batman | B106: 1976 | C106: 280 | D106: VG | E106: 40
A107: Batman | B107: 1984 | C107: 376 | D107: VF | E107: 40
A108: Batman | B108: 1987 | C108: 416 | D108: VF | E108: 30
A109: Batman | B109: 1990 | C109: 448 | D109: VF | E109: 30
A110: Batman | B110: 1990 | C110: 452 | D110: VF | E110: 30
A111: Batman | B111: 1990 | C111: 453 | D111: VF | E111: 30
A112: Batman | B112: 1991 | C112: 477 | D112: VF | E112: 30
A113: Batman annual | B113: 1982 | C113: 8 | D113: FN | E113: 50
A114: Batman dark knights returns ( seventh printing | B114: 1986 | C114: 1 | D114: VF+ | E114: 250
A115: Batman Family | B115: 1977 | C115: 10 | D115: VF | E115: 125
A116: Batman Family | B116: 1977 | C116: 11 | D116: VF | E116: 125
A117: Batman Family | B117: 1975 | C117: 2 | D117: FN | E117: 125
A118: Batman Family | B118: 1977 | C118: 12 | D118: FN | E118: 60
A119: Batman Family | B119: 1978 | C119: 15 | D119: FN | E119: 60
A120: Batman Family | B120: 1978 | C120: 16 | D120: VF | E120: 125
A121: Batman Family | B121: 1978 | C121: 17 | D121: VF | E121: 125
A122: Batman Family | B122: 1978 | C122: 18 | D122: VF | E122: 125
A123: Batman legends of the dark knight | B123: 1991 | C123: 16 | D123: VF | E123: 20
A124: Batman legends of the dark knight | B124: 1990 | C124: 3 | D124: VF | E124: 20
A125: Batman legends of the dark knight | B125: 1990 | C125: 7 | D125: VF | E125: 20
A126: Batman legends of the dark knight | B126: 1990 | C126: 7 | D126: VF | E126: 20
A127: Batman legends of the dark knight | B127: 1993 | C127: 42 | D127: VF | E127: 20
A128: Batman legends of the dark knight | B128: 1993 | C128: 45 | D128: VF | E128: 20
A129: Batman legends of the dark knight | B129: 1993 | C129: 46 | D129: VF | E129: 20
A130: Batman legends of the dark knight | B130: 1994 | C130: 57 | D130: VF | E130: 20
A131: Batman legends of the dark knight | B131: 1990 | C131: 8 | D131: FN | E131: 20
A132: Batman legends of the dark knight | B132: 1992 | C132: 31 | D132: FN | E132: 20
A133: Batman legends of the dark knight | B133: 1992 | C133: 40 | D133: FN | E133: 20
A134: Batman legends of the dark knight | B134: 1992 | C134: 41 | D134: FN | E134: 20
A135: Batman legends of the dark knight | B135: 1994 | C135: 56 | D135: FN | E135: 20
A136: Batman legends of the dark knight | B136: 1995 | C136: 68 | D136: FN | E136: 20
A137: Batman Movie special | B137: 1988 | C137: 1 | D137: NM | E137: 100
A138: Batman Spesial | B138: 1984 | C138: 1 | D138: VF | E138: 100
A139: Batman Sword of Azrael | B139: 1980 | C139: 3 | D139: VF | E139: 50
A140: Batman untold legend of | B140: 1980 | C140: 3 | D140: VF | E140: 50
A141: Batman Year two: | B141: 1990 | C141: 1 | D141: NM | E141: 100
A142: Beagle Boys | B142: 1974 | C142: 22 | D142: FN | E142: 30
A143: Beagle Boys | B143: 1975 | C143: 24 | D143: VF | E143: 60
A144: Beagle Boys | B144: 1975 | C144: 24 | D144: VF | E144: 60
A145: Beagle Boys | B145: 1975 | C145: 25 | D145: FN | E145: 30
A146: Beagle Boys | B146: 1975 | C146: 26 | D146: VF | E146: 60
A147: Beagle Boys | B147: 1976 | C147: 27 | D147: VF | E147: 60
A148: Beagle Boys | B148: 1976 | C148: 28 | D148: FN | E148: 30
A149: Beagle Boys | B149: 1976 | C149: 29 | D149: VF | E149: 14
A150: Beagle Boys | B150: 1976 | C150: 29 | D150: VF | E150: 14
A151: Beagle Boys | B151: 1976 | C151: 30 | D151: VF | E151: 14
A152: Beagle Boys | B152: 1976 | C152: 31 | D152: VF | E152: 14
A153: Beagle Boys | B153: 1976 | C153: 32 | D153: VF | E153: 14
A154: Beagle Boys | B154: 1977 | C154: 33 | D154: VF | E154: 50
A155: Beagle Boys | B155: 1977 | C155: 34 | D155: VF | E155: 50
A156: Beagle Boys | B156: 1977 | C156: 35 | D156: VF | E156: 50
A157: Beagle Boys | B157: 1977 | C157: 36 | D157: VF | E157: 50
A158: Beagle Boys | B158: 1977 | C158: 37 | D158: VF | E158: 50
A159: Beagle Boys | B159: 1977 | C159: 37 | D159: VF | E159: 50
A160: Beagle Boys | B160: 1977 | C160: 38 | D160: VF | E160: 50
A161: Beagle Boys | B161: 1977 | C161: 39 | D161: VF | E161: 50
A162: Beagle Boys | B162: 1978 | C162: 40 | D162: FN | E162: 20
A163: Beagle Boys | B163: 1978 | C163: 41 | D163: VF | E163: 50
A164: Beagle Boys | B164: 1978 | C164: 42 | D164: VF | E164: 50
A165: Beagle Boys | B165: 1978 | C165: 43 | D165: VF | E165: 50
A166: Beagle Boys | B166: 1978 | C166: 44 | D166: VF | E166: 50
A167: Beagle Boys | B167: 1978 | C167: 45 | D167: VF | E167: 50
A168: Beagle Boys | B168: 1978 | C168: 46 | D168: VF | E168: 50
A169: Beagle Boys | B169: 1979 | C169: 47 | D169: VF | E169: 50
A170: Beagle Boys VS Uncle Scrooge | B170: 1979 | C170: 1 | D170: VF | E170: 75
A171: Beagle Boys VS Uncle Scrooge | B171: 1979 | C171: 2 | D171: VF | E171: 50
A172: Beagle Boys VS Uncle Scrooge | B172: 1979 | C172: 3 | D172: VF | E172: 50
A173: Beagle Boys VS Uncle Scrooge | B173: 1979 | C173: 4 | D173: VF | E173: 50
A174: Beagle Boys VS Uncle Scrooge | B174: 1979 | C174: 5 | D174: VF | E174: 50
A175: Beagle Boys VS Uncle Scrooge | B175: 1979 | C175: 6 | D175: FN | E175: 25
A176: Beagle Boys VS Uncle Scrooge | B176: 1979 | C176: 7 | D176: VF | E176: 50
A177: Beagle Boys VS Uncle Scrooge | B177: 1979 | C177: 8 | D177: VF | E177: 50
A178: Beagle Boys VS Uncle Scrooge | B178: 1979 | C178: 9 | D178: FN | E178: 25
A179: Beagle Boys VS Uncle Scrooge | B179: 1979 | C179: 10 | D179: VF | E179: 40
A180: Beagle Boys VS Uncle Scrooge | B180: 1979 | C180: 11 | D180: FN | E180: 25
A181: Beagle Boys VS Uncle Scrooge | B181: 1979 | C181: 12 | D181: VF | E181: 40
A182: Beetle Bailey | B182: 1955 | C182: 5 | D182: GD | E182: 75
A183: Beetle Bailey | B183: 1971 | C183: 81 | D183: VF | E183: 75
A184: Beetle Bailey | B184: 1973 | C184: 103 | D184: VF | E184: 50
A185: Beetle Bailey | B185: 1974 | C185: 108 | D185: VF | E185: 50 | F185: 6p
A186: Beetle Bailey | B186: 1972 | C186: 87 | D186: FN | E186: 40
A187: Beetle Bailey | B187: 1976 | C187: 114 | D187: FN | E187: 40
A188: Believe it or not | B188: 1974 | C188: 47 | D188: GD | E188: 25
A189: Beowulf | B189: 1975 | C189: 1 | D189: VF | E189: 100
A190: Beowulf | B190: 1975 | C190: 4 | D190: VF | E190: 50
A191: Beowulf | B191: 1975 | C191: 2 | D191: FN | E191: 25
A192: Beowulf | B192: 1976 | C192: 5 | D192: FN | E192: 25
A193: Best of Walt Disney Comics Magazine | B193: 1974 | C193: 2 | D193: VF | E193: 500
A194: Best of Walt Disney Comics Magazine | B194: 1974 | C194: 3 | D194: VF | E194: 500
A195: Best of Walt Disney Comics Magazine | B195: 1974 | C195: 4 | D195: VF | E195: 500
A196: Betty and Veronica ( Archie) | B196: 1979 | C196: 278 | D196: VF | E196: 40
A197: Betty and Veronica ( Giant) | B197: 1976 | C197: 248 | D197: VF | E197: 40
A198: Betty and Veronica ( Giant) | B198: 1976 | C198: 249 | D198: VF | E198: 40
A199: Beware Terror tales | B199: 1952 | C199: 1 | D199: GD | E199: 600
A200: Black Goliath | B200: 1976 | C200: 3 | D200: VF | E200: 75
... 3328 more rows

Sheet Kopi av Amerikanske
A1: Tittel | B1: Årstall | C1: Nummer | D1: Kvalitet | E1: Pris i doll | F1: Pence
A2: 2001 Space Odyssey | B2: 1976 | C2: 5 | D2: FN | E2: 40
A3: 2001 Space Odyssey | B3: 1976 | C3: 6 | D3: FN | E3: 40 | F3: 12p
A4: 1st Issue Special | B4: 1975 | C4: 5 | D4: VF | E4: 30
A5: 1st Issue Special | B5: 1975 | C5: 5 | D5: VF | E5: 30
A6: 1st Issue Special | B6: 1975 | C6: 1 | D6: VF | E6: 25
A7: 1st Issue Special | B7: 1975 | C7: 1 | D7: VF | E7: 25
A8: 1st Issue Special | B8: 1975 | C8: 6 | D8: VF | E8: 20
A9: 1st Issue Special | B9: 1975 | C9: 7 | D9: VF | E9: 20
A10: 1st Issue Special | B10: 1975 | C10: 2 | D10: VF | E10: 15
A11: 1st Issue Special | B11: 1975 | C11: 2 | D11: VF | E11: 15
A12: 1st Issue Special | B12: 1975 | C12: 3 | D12: VF | E12: 15
A13: 1st Issue Special | B13: 1975 | C13: 3 | D13: VF | E13: 15
A14: 1st Issue Special | B14: 1975 | C14: 5 | D14: FN | E14: 15
A15: 1st Issue Special | B15: 1975 | C15: 4 | D15: VF | E15: 10
A16: 1st Issue Special | B16: 1975 | C16: 4 | D16: VF | E16: 10
A17: 1st Issue Special | B17: 1975 | C17: 7 | D17: FN | E17: 10
A18: 1st Issue Special | B18: 1976 | C18: 10 | D18: FN | E18: 6
A19: 1st Issue Special | B19: 1975 | C19: 6 | D19: VG | E19: 5
A20: 1st Issue Special | B20: 1975 | C20: 9 | D20: GD | E20: 4
A21: Action Comics | B21: 1974 | C21: 443 | D21: FN | E21: 24
A22: Action Comics | B22: 1961 | C22: 281 | D22: Fair | E22: 16
A23: Action Comics | B23: 1969 | C23: 377 | D23: VG | E23: 15
A24: Action Comics | B24: 1972 | C24: 414 | D24: FN | E24: 15
A25: Action Comics | B25: 1973 | C25: 425 | D25: FN | E25: 11
A26: Action Comics | B26: 1967 | C26: 356 | D26: GD | E26: 10
A27: Action Comics | B27: 1974 | C27: 447 | D27: VF | E27: 10
A28: Action Comics | B28: 1976 | C28: 461 | D28: VF | E28: 7
A29: Action Comics | B29: 1973 | C29: 421 | D29: FN | E29: 6
A30: Action Comics | B30: 1973 | C30: 426 | D30: FN | E30: 5
A31: Action Comics | B31: 1974 | C31: 438 | D31: FN | E31: 5
A32: Action Comics | B32: 1983 | C32: 550 | D32: VF | E32: 7
A33: Action Comics | B33: 1974 | C33: 442 | D33: VG | E33: 4
A34: Action Comics | B34: 1976 | C34: 462 | D34: VG | E34: 4
A35: Adventure comics | B35: 1975 | C35: 438 | D35: FN | E35: 20
A36: Adventure comics | B36: 1975 | C36: 439 | D36: FN | E36: 20
A37: Adventure comics | B37: 1974 | C37: 436 | D37: FN | E37: 18
A38: Adventure comics | B38: 1975 | C38: 437 | D38: FN | E38: 18
A39: Adventure comics | B39: 1972 | C39: 414 | D39: FN | E39: 15
A40: Adventure comics | B40: 1974 | C40: 432 | D40: FN | E40: 15
A41: Adventure comics | B41: 1977 | C41: 450 | D41: VF | E41: 10
A42: Adventure comics | B42: 1977 | C42: 451 | D42: VF | E42: 10
A43: Adventure comics | B43: 1977 | C43: 453 | D43: VF | E43: 10
A44: Adventure comics | B44: 1978 | C44: 456 | D44: VF | E44: 10
A45: Adventure comics | B45: 1978 | C45: 457 | D45: VF | E45: 10
A46: Adventure comics | B46: 1978 | C46: 458 | D46: VF | E46: 10
A47: Adventure comics | B47: 1974 | C47: 435 | D47: VG | E47: 8
A48: Adventure comics | B48: 1975 | C48: 438 | D48: VG | E48: 8
A49: Adventure comics | B49: 1978 | C49: 454 | D49: FN | E49: 6
A50: Adventure comics | B50: 1978 | C50: 455 | D50: FN | E50: 6
A51: Adventure comics | B51: 1975 | C51: 438 | D51: GD | E51: 5
A52: All American men of war | B52: 1954 | C52: 9 | D52: Fair | E52: 75
A53: Amazing Adventures | B53: 1972 | C53: 12 | D53: VF | E53: 125
A54: Amazing Adventures | B54: 1974 | C54: 24 | D54: VF | E54: 10
A55: Amazing Adventures | B55: 1975 | C55: 32 | D55: FN | E55: 10
A56: Amazing Adventures | B56: 1976 | C56: 38 | D56: VF | E56: 10
A57: Amazing Adventures | B57: 1976 | C57: 35 | D57: VF | E57: 10
A58: Aquaman | B58: 1966 | C58: 28 | D58: GD | E58: 26
A59: Aquaman | B59: 1970 | C59: 50 | D59: Fair | E59: 5
A60: Arak son of thunder | B60: 1981 | C60: 1 | D60: VF | E60: 5
A61: Arion lord of atlantis | B61: 1982 | C61: 1 | D61: VF | E61: 5
A62: Aristokittens | B62: 1975 | C62: 8 | D62: VF | E62: 24
A63: Aristokittens | B63: 1975 | C63: 9 | D63: FN | E63: 12
A64: Arrgh | B64: 1975 | C64: 4 | D64: VF | E64: 25
A65: Arrgh | B65: 1975 | C65: 5 | D65: VF | E65: 25
A66: Astonishing Tales | B66: 1971 | C66: 12 | D66: FN | E66: 50 | F66: 6
A67: Astonishing Tales | B67: 1970 | C67: 5 | D67: FN | E67: 25
A68: Astonishing Tales | B68: 1975 | C68: 28 | D68: VF | E68: 25
A69: Astonishing Tales | B69: 1975 | C69: 30 | D69: VF | E69: 25
A70: Astonishing Tales | B70: 1975 | C70: 30 | D70: VF | E70: 25
A71: Astonishing Tales | B71: 1975 | C71: 31 | D71: VF | E71: 20
A72: Astonishing Tales | B72: 1975 | C72: 32 | D72: VF | E72: 20
A73: Astonishing Tales | B73: 1976 | C73: 36 | D73: VF | E73: 20 | F73: 10p
A74: Astonishing Tales | B74: 1975 | C74: 30 | D74: FN | E74: 10
A75: Astonishing Tales | B75: 1976 | C75: 36 | D75: FN | E75: 7
A76: Astonishing Tales | B76: 1972 | C76: 15 | D76: VG | E76: 5
A77: Atom | B77: 1966 | C77: 27 | D77: GD | E77: 15
A78: Attack | B78: 1958 | C78: 54 | D78: GD | E78: 40
A79: Avengers | B79: 1970 | C79: 73 | D79: GD | E79: 30
A80: Avengers | B80: 1973 | C80: 192 | D80: VG | E80: 5
A81: Avengers | B81: 1974 | C81: 193 | D81: VG | E81: 5
A82: Avengers Marvel treasury Edition | B82: 1975 | C82: 7 | D82: FN | E82: 20
A83: Baby Snoots | B83: 1975 | C83: 12 | D83: VF | E83: 12
A84: Barney and Betty | B84: 1976 | C84: 21 | D84: VF | E84: 18 | F84: 10p
A85: Batman | B85: 1974 | C85: 259 | D85: VF | E85: 120
A86: Batman | B86: 1975 | C86: 262 | D86: VF | E86: 80
A87: Batman | B87: 1971 | C87: 233 | D87: GD | E87: 25
A88: Batman | B88: 1971 | C88: 236 | D88: GD | E88: 25
A89: Batman | B89: 1976 | C89: 268 | D89: VF | E89: 25
A90: Batman | B90: 1977 | C90: 287 | D90: VF | E90: 25
A91: Batman | B91: 1977 | C91: 290 | D91: VF | E91: 25
A92: Batman | B92: 1980 | C92: 321 | D92: VF | E92: 25
A93: Batman | B93: 1979 | C93: 316 | D93: VF | E93: 18
A94: Batman | B94: 1979 | C94: 316 | D94: VF | E94: 18
A95: Batman | B95: 1980 | C95: 322 | D95: VF | E95: 18
A96: Batman | B96: 1975 | C96: 267 | D96: FN | E96: 15
A97: Batman | B97: 1977 | C97: 289 | D97: FN | E97: 15
A98: Batman | B98: 1979 | C98: 309 | D98: VF | E98: 15
A99: Batman | B99: 1979 | C99: 317 | D99: VF | E99: 15
A100: Batman | B100: 1979 | C100: 317 | D100: VF | E100: 15
A101: Batman | B101: 1979 | C101: 318 | D101: VF | E101: 15
A102: Batman | B102: 1979 | C102: 318 | D102: VF | E102: 15
A103: Batman | B103: 1980 | C103: 319 | D103: VF | E103: 15
A104: Batman | B104: 1980 | C104: 319 | D104: VF | E104: 15
A105: Batman | B105: 1980 | C105: 320 | D105: VF | E105: 15
A106: Batman | B106: 1976 | C106: 280 | D106: VG | E106: 8
A107: Batman | B107: 1984 | C107: 376 | D107: VF | E107: 8
A108: Batman | B108: 1987 | C108: 416 | D108: VF | E108: 6
A109: Batman | B109: 1990 | C109: 448 | D109: VF | E109: 6
A110: Batman | B110: 1990 | C110: 452 | D110: VF | E110: 5
A111: Batman | B111: 1990 | C111: 453 | D111: VF | E111: 5
A112: Batman | B112: 1991 | C112: 477 | D112: VF | E112: 5
A113: Batman annual | B113: 1982 | C113: 8 | D113: FN | E113: 10
A114: Batman dark knights returns ( seventh printing | B114: 1986 | C114: 1 | D114: NM | E114: 50
A115: Batman Family | B115: 1977 | C115: 10 | D115: VF | E115: 25
A116: Batman Family | B116: 1977 | C116: 11 | D116: VF | E116: 25
A117: Batman Family | B117: 1975 | C117: 2 | D117: FN | E117: 20
A118: Batman Family | B118: 1977 | C118: 12 | D118: FN | E118: 12
A119: Batman Family | B119: 1978 | C119: 15 | D119: FN | E119: 12
A120: Batman Family | B120: 1978 | C120: 16 | D120: VF | E120: 10
A121: Batman Family | B121: 1978 | C121: 17 | D121: VF | E121: 10
A122: Batman Family | B122: 1978 | C122: 18 | D122: VF | E122: 10
A123: Batman legends of the dark knight | B123: 1991 | C123: 16 | D123: VF | E123: 7
A124: Batman legends of the dark knight | B124: 1990 | C124: 3 | D124: VF | E124: 5
A125: Batman legends of the dark knight | B125: 1990 | C125: 7 | D125: VF | E125: 5
A126: Batman legends of the dark knight | B126: 1990 | C126: 7 | D126: VF | E126: 5
A127: Batman legends of the dark knight | B127: 1993 | C127: 42 | D127: VF | E127: 5
A128: Batman legends of the dark knight | B128: 1993 | C128: 45 | D128: VF | E128: 5
A129: Batman legends of the dark knight | B129: 1993 | C129: 46 | D129: VF | E129: 5
A130: Batman legends of the dark knight | B130: 1994 | C130: 57 | D130: VF | E130: 5
A131: Batman legends of the dark knight | B131: 1990 | C131: 8 | D131: FN | E131: 5
A132: Batman legends of the dark knight | B132: 1992 | C132: 31 | D132: FN | E132: 5
A133: Batman legends of the dark knight | B133: 1992 | C133: 40 | D133: FN | E133: 5
A134: Batman legends of the dark knight | B134: 1992 | C134: 41 | D134: FN | E134: 5
A135: Batman legends of the dark knight | B135: 1994 | C135: 56 | D135: FN | E135: 5
A136: Batman legends of the dark knight | B136: 1995 | C136: 68 | D136: FN | E136: 5
A137: Batman Movie special | B137: 1988 | C137: 1 | D137: NM | E137: 15
A138: Batman Spesial | B138: 1984 | C138: 1 | D138: VF | E138: 15
A139: Batman Sword of Azrael | B139: 1980 | C139: 3 | D139: VF | E139: 10
A140: Batman untold legend of | B140: 1980 | C140: 3 | D140: VF | E140: 10
A141: Batman Year two: | B141: 1990 | C141: 1 | D141: NM | E141: 20
A142: Beagle Boys | B142: 1974 | C142: 22 | D142: FN | E142: 7
A143: Beagle Boys | B143: 1975 | C143: 24 | D143: VF | E143: 14
A144: Beagle Boys | B144: 1975 | C144: 24 | D144: VF | E144: 14
A145: Beagle Boys | B145: 1975 | C145: 25 | D145: FN | E145: 7
A146: Beagle Boys | B146: 1975 | C146: 26 | D146: VF | E146: 14
A147: Beagle Boys | B147: 1976 | C147: 27 | D147: VF | E147: 14
A148: Beagle Boys | B148: 1976 | C148: 28 | D148: FN | E148: 7
A149: Beagle Boys | B149: 1976 | C149: 29 | D149: VF | E149: 14
A150: Beagle Boys | B150: 1976 | C150: 29 | D150: VF | E150: 14
A151: Beagle Boys | B151: 1976 | C151: 30 | D151: VF | E151: 14
A152: Beagle Boys | B152: 1976 | C152: 31 | D152: VF | E152: 14
A153: Beagle Boys | B153: 1976 | C153: 32 | D153: VF | E153: 14
A154: Beagle Boys | B154: 1977 | C154: 33 | D154: VF | E154: 10
A155: Beagle Boys | B155: 1977 | C155: 34 | D155: VF | E155: 10
A156: Beagle Boys | B156: 1977 | C156: 35 | D156: VF | E156: 10
A157: Beagle Boys | B157: 1977 | C157: 36 | D157: VF | E157: 10
A158: Beagle Boys | B158: 1977 | C158: 37 | D158: VF | E158: 10
A159: Beagle Boys | B159: 1977 | C159: 37 | D159: VF | E159: 10
A160: Beagle Boys | B160: 1977 | C160: 38 | D160: VF | E160: 10
A161: Beagle Boys | B161: 1977 | C161: 39 | D161: VF | E161: 10
A162: Beagle Boys | B162: 1978 | C162: 40 | D162: FN | E162: 5
A163: Beagle Boys | B163: 1978 | C163: 41 | D163: VF | E163: 10
A164: Beagle Boys | B164: 1978 | C164: 42 | D164: VF | E164: 10
A165: Beagle Boys | B165: 1978 | C165: 43 | D165: VF | E165: 10
A166: Beagle Boys | B166: 1978 | C166: 44 | D166: VF | E166: 10
A167: Beagle Boys | B167: 1978 | C167: 45 | D167: VF | E167: 10
A168: Beagle Boys | B168: 1978 | C168: 46 | D168: VF | E168: 10
A169: Beagle Boys | B169: 1979 | C169: 47 | D169: VF | E169: 10
A170: Beagle Boys VS Uncle Scrooge | B170: 1979 | C170: 1 | D170: VF | E170: 16
A171: Beagle Boys VS Uncle Scrooge | B171: 1979 | C171: 2 | D171: VF | E171: 8
A172: Beagle Boys VS Uncle Scrooge | B172: 1979 | C172: 3 | D172: VF | E172: 8
A173: Beagle Boys VS Uncle Scrooge | B173: 1979 | C173: 4 | D173: VF | E173: 8
A174: Beagle Boys VS Uncle Scrooge | B174: 1979 | C174: 5 | D174: VF | E174: 8
A175: Beagle Boys VS Uncle Scrooge | B175: 1979 | C175: 6 | D175: FN | E175: 4
A176: Beagle Boys VS Uncle Scrooge | B176: 1979 | C176: 7 | D176: VF | E176: 8
A177: Beagle Boys VS Uncle Scrooge | B177: 1979 | C177: 8 | D177: VF | E177: 8
A178: Beagle Boys VS Uncle Scrooge | B178: 1979 | C178: 9 | D178: FN | E178: 4
A179: Beagle Boys VS Uncle Scrooge | B179: 1979 | C179: 10 | D179: VF | E179: 8
A180: Beagle Boys VS Uncle Scrooge | B180: 1979 | C180: 11 | D180: FN | E180: 4
A181: Beagle Boys VS Uncle Scrooge | B181: 1979 | C181: 12 | D181: VF | E181: 8
A182: Beetle Bailey | B182: 1955 | C182: 5 | D182: GD | E182: 17
A183: Beetle Bailey | B183: 1971 | C183: 81 | D183: VF | E183: 16
A184: Beetle Bailey | B184: 1973 | C184: 103 | D184: VF | E184: 10
A185: Beetle Bailey | B185: 1974 | C185: 108 | D185: VF | E185: 10 | F185: 6p
A186: Beetle Bailey | B186: 1972 | C186: 87 | D186: FN | E186: 7
A187: Beetle Bailey | B187: 1976 | C187: 114 | D187: FN | E187: 7
A188: Believe it or not | B188: 1974 | C188: 47 | D188: GD | E188: 4
A189: Beowulf | B189: 1975 | C189: 1 | D189: VF | E189: 15
A190: Beowulf | B190: 1975 | C190: 4 | D190: VF | E190: 10
A191: Beowulf | B191: 1975 | C191: 2 | D191: FN | E191: 5
A192: Beowulf | B192: 1976 | C192: 5 | D192: FN | E192: 4
A193: Best of Walt Disney Comics Magazine | B193: 1974 | C193: 1 | D193: VF | E193: 95
A194: Best of Walt Disney Comics Magazine | B194: 1974 | C194: 2 | D194: VF | E194: 95
A195: Best of Walt Disney Comics Magazine | B195: 1974 | C195: 3 | D195: VF | E195: 95
A196: Best of Walt Disney Comics Magazine | B196: 1974 | C196: 4 | D196: VF | E196: 95
A197: Betty and Veronica ( Archie) | B197: 1979 | C197: 278 | D197: VF | E197: 10
A198: Betty and Veronica ( Giant) | B198: 1976 | C198: 248 | D198: VF | E198: 10
A199: Betty and Veronica ( Giant) | B199: 1976 | C199: 249 | D199: VF | E199: 10
A200: Beware Terror tales | B200: 1952 | C200: 1 | D200: GD | E200: 100
... 3429 more rows

Sheet Album
A1: Album og Julehefter | C1: Utgivelsesår | D1: Antall | E1: Pris | F1: Solgt
A2: Julehefter | C2: 0 | D2: 0 | E2: 0
A3: Brumle | C3: 1950 | D3: 0 | E3: 0 | F3: 1
A4: Haukepatruljen | C4: 1950 | D4: 74 | E4: 22200 | F4: 21
A5: Knoll og Tott | C5: 1950 | D5: 0 | E5: 0 | F5: 5
A6: Nils og Blåmann | C6: 1950 | D6: 4 | E6: 1400
A7: Peik | C7: 1950 | D7: 0 | E7: 0 | F7: 2
A8: Stomperud | C8: 1950 | D8: 7 | E8: 2450 | F8: 13
A9: Tarzan | C9: 1950 | D9: 1 | E9: 650
A10: Tuss og Troll | C10: 1950 | D10: 0 | E10: 0 | F10: 1
A11: Vangsgutane | C11: 1950 | D11: 0 | E11: 0 | F11: 1
A12: Mumietrollet | C12: 1960 | D12: 1 | E12: 300
A13: Willy på eventyr | C13: 1960 | D13: 1 | E13: 300
A14: Bamsemann | C14: 1960 | D14: 0 | E14: 0 | F14: 7
A15: Blondie | C15: 1960 | D15: 2 | E15: 150 | F15: 3
A16: Dådi og Bamsi | C16: 1960 | D16: 0 | E16: 0 | F16: 1
A17: Fiinbeck og Fia | C17: 1960 | D17: 0 | E17: 0 | F17: 1
A18: Stomperud | C18: 1960 | D18: 24 | E18: 4300 | F18: 14
A19: Tarzan | C19: 1960 | D19: 0 | E19: 0 | F19: 3
A20: Vangsgutane | C20: 1960 | D20: 4 | E20: 950 | F20: 7
A21: Alaska | C21: 1970 | D21: 6 | E21: 380
A22: Alien den Åttende p | C22: 1970 | D22: 5 | E22: 375 | F22: 1
A23: Apeplaneten | C23: 1970 | D23: 10 | E23: 825 | F23: 5
A24: Asterix | C24: 1970 | D24: 40 | E24: 3100 | F24: 13
A25: Biggles | C25: 1970 | D25: 6 | E25: 600 | F25: 2
A26: Blueberry Fort Navajo | C26: 1970 | D26: 12 | E26: 1400 | F26: 4
A27: Brock Makerne | C27: 1970 | D27: 1 | E27: 100 | F27: 1
A28: Bruno Brazil | C28: 1970 | D28: 0 | E28: 0 | F28: 1
A29: Buddy Longway | C29: 1970 | D29: 5 | E29: 320 | F29: 3
A30: Dennis og Co | C30: 1970 | D30: 3 | E30: 200 | F30: 3
A31: Elefantgutten | C31: 1970 | D31: 3 | E31: 160
A32: Et Se album | C32: 1970 | D32: 13 | E32: 1150
A33: Familien Flint | C33: 1970 | D33: 2 | E33: 100
A34: Fantastiske 4 Superseriealbum | C34: 1970 | D34: 1 | E34: 200
A35: Fremmad og aldri glemme | C35: 1970 | D35: 1 | E35: 600
A36: Gataavisa | C36: 1970 | D36: 2 | E36: 200
A37: Hakke Hakkespett | C37: 1970 | D37: 8 | E37: 400 | F37: 1
A38: Helvan og Halvan | C38: 1970 | D38: 10 | E38: 1500
A39: Husk Jonatan Husk | C39: 1970 | D39: 1 | E39: 150
A40: Hårek Berserk | C40: 1970 | D40: 5 | E40: 340
A41: I Dødens skygge | C41: 1970 | D41: 0 | E41: 0 | F41: 0
A42: Iznogood | C42: 1970 | D42: 12 | E42: 1275 | F42: 2
A43: Jaktfalkene | C43: 1970 | D43: 1 | E43: 100 | F43: 1
A44: Jules Verne serien | C44: 1970 | D44: 5 | E44: 550 | F44: 4
A45: Jungelgutten | C45: 1970 | D45: 3 | E45: 200
A46: Korak og Co/album | C46: 1970 | D46: 16 | E46: 820
A47: Knøttene | C47: 1970 | D47: 2 | E47: 70
A48: Lajban | C48: 1970 | D48: 2 | E48: 110
A49: Lucky Luke | C49: 1970 | D49: 38 | E49: 3200 | F49: 16
A50: Lynvingen | C50: 1970 | D50: 8 | E50: 1300 | F50: 1
A51: Oppa-Pa | C51: 1970 | D51: 2 | E51: 250 | F51: 7
A52: Prins Valiant | C52: 1970 | D52: 49 | E52: 3900 | F52: 5
A53: Rahan | C53: 1970 | D53: 5 | E53: 375 | F53: 2
A54: Scooby Doo | C54: 1970 | D54: 2 | E54: 115
A55: Serie Biblioteket | C55: 1970 | D55: 3 | E55: 250 | F55: 6
A56: Smurfene | C56: 1970 | D56: 1 | E56: 75 | F56: 1
A57: Sprint | C57: 1970 | D57: 5 | E57: 450 | F57: 5
A58: Supermann | C58: 1970 | D58: 18 | E58: 1850
A59: Tarzan Album | C59: 1970 | D59: 17 | E59: 950 | F59: 8
A60: Tarzan & Co | C60: 1970 | D60: 29 | E60: 4100 | F60: 1
A61: Tempo Album | C61: 1970 | D61: 11 | E61: 1540 | F61: 8
A62: Tin Tin Allers | C62: 1970 | D62: 7 | E62: 1600
A63: Tin Tin Danske utg | C63: 1970 | D63: 5 | E63: 1400
A64: Tom Sharp | C64: 1970 | D64: 1 | E64: 100
A65: Trumf serien | C65: 1970 | D65: 7 | E65: 900 | F65: 3
A66: Udødlige klassikere | C66: 1970 | D66: 6 | E66: 650
A67: Valhall serie 1 | C67: 1970 | D67: 3 | E67: 525
A68: Verdens mest spennende | C68: 1970 | D68: 4 | E68: 425 | F68: 3
A69: Billy | C69: 1970 | D69: 15 | E69: 1600 | F69: 6
A70: Billy | C70: 1970 | D70: 73 | E70: 2900
A71: Blondie | C71: 1970 | D71: 14 | E71: 800 | F71: 14
A72: Busteskjold | C72: 1970 | D72: 1 | E72: 150 | F72: 1
A73: Fiinbeck og Fia | C73: 1970 | D73: 2 | E73: 150 | F73: 9
A74: Hårek | C74: 1970 | D74: 6 | E74: 400 | F74: 6
A75: Knoll og Tott | C75: 1970 | D75: 2 | E75: 80 | F75: 20
A76: Nils og Blåmann | C76: 1970 | D76: 2 | E76: 175 | F76: 4
A77: Pelle Svanseløs | C77: 1970 | D77: 0 | E77: 0 | F77: 3
A78: Smørbukk | C78: 1970 | D78: 11 | E78: 1950 | F78: 5
A79: Snøfte Smith | C79: 1970 | D79: 7 | E79: 525 | F79: 9
A80: Stomperud | C80: 1970 | D80: 41 | E80: 2975 | F80: 6
A81: Tarzan | C81: 1970 | D81: 4 | E81: 700 | F81: 2
A82: Tigern | C82: 1970 | D82: 4 | E82: 325
A83: Trollmannen Tresk | C83: 1970 | D83: 2 | E83: 160
A84: Tuss og Troll | C84: 1970 | D84: 1 | E84: 50 | F84: 2
A85: Vangsgutane | C85: 1970 | D85: 2 | E85: 275 | F85: 2
A86: Buster Spesial | C86: 1975 | D86: 3 | E86: 180
A87: Johan Vilde | C87: 1977 | D87: 5 | E87: 300
A88: Afrikansk parafyme | C88: 1980 | D88: 2 | E88: 150
A89: Agent 327 | C89: 1980 | D89: 4 | E89: 265
A90: Agent X9 album | C90: 1980 | D90: 8 | E90: 400
A91: Alvefolket | C91: 1980 | D91: 1 | E91: 200 | F91: 8
A92: Andrax | C92: 1980 | D92: 0 | E92: 0 | F92: 0
A93: Anita | C93: 1980 | D93: 0 | E93: 0 | F93: 1
A94: Aristokratene | C94: 1980 | D94: 4 | E94: 240 | F94: 2
A95: Asterix | C95: 1980 | D95: 47 | E95: 2750 | F95: 25
A96: Batman | C96: 1980 | D96: 3 | E96: 210 | F96: 3
A97: Benny Bomsterk | C97: 1980 | D97: 5 | E97: 375 | F97: 1
A98: Bernard prince | C98: 1980 | D98: 4 | E98: 440 | F98: 4
A99: Billy album | C99: 1980 | D99: 12 | E99: 800
A100: Blueberrys unge liv | C100: 1980 | D100: 9 | E100: 1200 | F100: 4
A101: Blueberry den unge | C101: 1980 | D101: 2 | E101: 200
A102: Blueberry Hovedserien | C102: 1980 | D102: 39 | E102: 4150 | F102: 3
A103: Blåjakkene | C103: 1980 | D103: 6 | E103: 700 | F103: 3
A104: Bob Morane | C104: 1980 | D104: 1 | E104: 60 | F104: 2
A105: Boucq | C105: 1980 | D105: 2 | E105: 150
A106: Bourgeon | C106: 1980 | D106: 0 | E106: 0 | F106: 1
A107: Bruce j hawker | C107: 1980 | D107: 2 | E107: 70 | F107: 1
A108: Buck Rogers | C108: 1980 | D108: 1 | E108: 100
A109: Canardo | C109: 1980 | D109: 1 | E109: 50 | F109: 1
A110: Clever Smart | C110: 1980 | D110: 3 | E110: 195 | F110: 3
A111: Clifton | C111: 1980 | D111: 2 | E111: 110 | F111: 4
A112: Comix | C112: 1980 | D112: 1 | E112: 75 | F112: 1
A113: Corto Maltese | C113: 1980 | D113: 0 | E113: 0 | F113: 3
A114: Cubitus | C114: 1980 | D114: 4 | E114: 330
A115: Danny Futoro | C115: 1980 | D115: 5 | E115: 275
A116: De beste så langt | C116: 1980 | D116: 1 | E116: 50
A117: De fem på eventyr | C117: 1980 | D117: 0 | E117: 0 | F117: 4
A118: Dennis og Co album | C118: 1980 | D118: 3 | E118: 170
A119: Den sorte ordenes fal | C119: 1980 | D119: 2 | E119: 135
A120: Den stumme | C120: 1980 | D120: 2 | E120: 140
A121: Den gule dverg | C121: 1980 | D121: 1 | E121: 75
A122: De olympiske eventyr | C122: 1980 | D122: 8 | E122: 600
A123: Detektiv-gjengen | C123: 1980 | D123: 3 | E123: 155
A124: Djemilah | C124: 1980 | D124: 1 | E124: 75
A125: Dynastiet Willock | C125: 1980 | D125: 1 | E125: 200
A126: Edderkoppen Superseriea | C126: 1980 | D126: 10 | E126: 1350 | F126: 6
A127: Edward eventyrlige | C127: 1980 | D127: 4 | E127: 200
A128: En dag i den maskerte agurks liv | C128: 1980 | D128: 1 | E128: 40
A129: Epic | C129: 1980 | D129: 2 | E129: 150 | F129: 1
A130: Eric Castel | C130: 1980 | D130: 2 | E130: 90 | F130: 1
A131: Eventyrenes menn | C131: 1980 | D131: 4 | E131: 200 | F131: 1
A132: Eventyr i gult | C132: 1980 | D132: 3 | E132: 135
A133: Familien Gnuff | C133: 1980 | D133: 0 | E133: 0 | F133: 1
A134: Finn og Fiffi | C134: 1980 | D134: 0 | E134: 0 | F134: 1
A135: Flipp og Flopp | C135: 1980 | D135: 4 | E135: 440 | F135: 1
A136: Flammetreets blod | C136: 1980 | D136: 3 | E136: 350
A137: Fotball en Vi menns bok | C137: 1980 | D137: 0 | E137: 0 | F137: 1
A138: Franka | C138: 1980 | D138: 2 | E138: 115
A139: Gigantic | C139: 1980 | D139: 1 | E139: 100
A140: Gjermund og gjengen | C140: 1980 | D140: 1 | E140: 50
A141: Guds Gale | C141: 1980 | D141: 1 | E141: 75
A142: Gully | C142: 1980 | D142: 1 | E142: 50
A143: He Pao | C143: 1980 | D143: 2 | E143: 150
A144: Hevnen | C144: 1980 | D144: 1 | E144: 50
A145: Hulk /Superseriealbum | C145: 1980 | D145: 0 | E145: 0 | F145: 8
A146: Indiana Jones | C146: 1980 | D146: 0 | E146: 0 | F146: 2
A147: Indian summer | C147: 1980 | D147: 1 | E147: 150
A148: Isklade grøss | C148: 1980 | D148: 4 | E148: 275
A149: James Bond | C149: 1980 | D149: 3 | E149: 210 | F149: 1
A150: Jeremiah | C150: 1980 | D150: 3 | E150: 400 | F150: 4
A151: Jessica Blandy | C151: 1980 | D151: 3 | E151: 300
A152: Julius | C152: 1980 | D152: 2 | E152: 90
A153: Jåttene | C153: 1980 | D153: 3 | E153: 135
A154: Kamp Spesial | C154: 1980 | D154: 9 | E154: 500 | F154: 4
A155: Keiserens sønner | C155: 1980 | D155: 5 | E155: 75
A156: Kids | C156: 1980 | D156: 2 | E156: 85
A157: Knock Out | C157: 1980 | D157: 14 | E157: 625 | F157: 4
A158: Kronan den fredløse | C158: 1980 | D158: 4 | E158: 265
A159: Kåmix | C159: 1980 | D159: 2 | E159: 250
A160: Largoi Winch | C160: 1980 | D160: 1 | E160: 75
A161: Lauzier | C161: 1980 | D161: 0 | E161: 0 | F161: 3
A162: Leonardo | C162: 1980 | D162: 2 | E162: 150
A163: Lille Lasse | C163: 1980 | D163: 0 | E163: 0 | F163: 2
A164: Lillemor Spesial | C164: 1980 | D164: 2 | E164: 125
A165: Linda og Valentin | C165: 1980 | D165: 1 | E165: 75 | F165: 1
A166: Lovnda | C166: 1980 | D166: 2 | E166: 115
A167: Lucky Luke | C167: 1980 | D167: 134 | E167: 4600 | F167: 54
A168: Lyn Gordon filmalbum | C168: 1980 | D168: 9 | E168: 700 | F168: 1
A169: Mac Coy | C169: 1980 | D169: 9 | E169: 525
A170: Mad Klassiske latterligheter | C170: 1980 | D170: 3 | E170: 225
A171: Mastetoppen skrekk | C171: 1980 | D171: 1 | E171: 75
A172: Menneskerettighetene | C172: 1980 | D172: 1 | E172: 75
A173: Mikrofolkets merkelige | C173: 1980 | D173: 2 | E173: 80
A174: Mjaurits | C174: 1980 | D174: 1 | E174: 50
A175: Moby Dick | C175: 1980 | D175: 0 | E175: 0 | F175: 1
A176: Morgan kane | C176: 1980 | D176: 2 | E176: 375 | F176: 4
A177: Natasja | C177: 1980 | D177: 5 | E177: 400 | F177: 2
A178: Nicky Lettmatros | C178: 1980 | D178: 5 | E178: 335
A179: NIMH | C179: 1980 | D179: 1 | E179: 35
A180: Norsk tegneserieforum års | C180: 1980 | D180: 3 | E180: 225
A181: Papyrus | C181: 1980 | D181: 2 | E181: 100
A182: Peter Pan | C182: 1980 | D182: 1 | E182: 50
A183: Pilot | C183: 1980 | D183: 0 | E183: 0 | F183: 5
A184: Pink panter | C184: 1980 | D184: 3 | E184: 130
A185: På Vingene spesial | C185: 1980 | D185: 7 | E185: 700
A186: Ravn | C186: 1980 | D186: 0 | E186: 0 | F186: 5
A187: Red Kelly | C187: 1980 | D187: 3 | E187: 260 | F187: 3
A188: Reka | C188: 1980 | D188: 6 | E188: 425
A189: Reporterne | C189: 1980 | D189: 3 | E189: 290 | F189: 0
A190: Ringenes herre | C190: 1980 | D190: 1 | E190: 200
A191: Robin Wood | C191: 1980 | D191: 2 | E191: 150
A192: Rockegjengen | C192: 1980 | D192: 2 | E192: 150 | F192: 1
A193: Roger rabbit | C193: 1980 | D193: 0 | E193: 0 | F193: 1
A194: Rødt,Hvitt og Rått | C194: 1980 | D194: 2 | E194: 115
A195: Røyskatten | C195: 1980 | D195: 1 | E195: 100
A196: Sambre | C196: 1980 | D196: 2 | E196: 150
A197: Sammy | C197: 1980 | D197: 8 | E197: 600
A198: Sam Pezzo | C198: 1980 | D198: 2 | E198: 115
A199: Serie Album | C199: 1980 | D199: 34 | E199: 2725 | F199: 15
A200: Serie fokus | C200: 1980 | D200: 8 | E200: 400 | F200: 4
... 198 more rows

Sheet Ark 10

Sheet Ark 9

Sheet Feriereiser
A1: Feriereiser Årstall | B1: Måned | C1: Transport, fly,tog,Cruise | D1: Mellomlanding, ovs | E1: Land, destinasjon | F1: By, stater, steder | H1: Deltakere
B2: September | C2: Fly | D2: Torp | E2: Romania (34) | F2: Buceresti | H2: Gekki ( SL tur)
A3: 2022 (62 år) | B3: August | C3: Fly og Cruise | D3: Schiphol | E3: Italia, Hellas, Tyrkia | F3: Roma, Napoli,Santorini,Mykonos, Kasadasi | H3: Liv kristin, Gekki, Helga, Josh, Liv Cameron, Johan Caspian Heidi, Erik, Håkon, Rebekka
A4: 2022 | B4: Mai | C4: Fly og tog | D4: Schiphol | E4: Italia | F4: Milano, Ivrea | H4: Liv kristin, Gekki
A6: 2021 | B6: Oktober | C6: Fly | E6: Hellas | F6: Rodhos | H6: Liv kristin, Gekki
A8: 2020 (60 år) | B8: Januar | C8: Fly | E8: Spania (Granka ) | F8: Amadores | H8: Liv kristin, Gekki
A10: 2019 | B10: Mai | C10: Fly | D10: Oslo, Moskva, Tel Aviv | E10: Russland, Moska flyplass (33) Israel | F10: Jerusalem, Dødehavet, Tel Aviv | H10: Liv Kristin, Gekki
A11: 2019 | B11: September | C11: Buss, Fly | D11: Torp | E11: Polen | F11: Warzawa | H11: Gekki ( SL tur)
A13: 2018 | B13: Mai | C13: Fly | D13: Schipool | E13: Roma | F13: Roma | H13: Liv Kristin, gekki ( Murmesterforeingen)
A15: 2017 | B15: Desember 16 Januar 17 | C15: Fly, minibuss | D15: Schippol,Singapore,Christ Chursh | E15: New Zeland (32) | F15: Criist Church, Georgetown | H15: Liv kristin, Gekki, Helga, Josh, Liv Camerom, Johan Caspian
A17: 2016 | B17: Mai | C17: Fly | D17: Marbella | E17: Spania, Gibraltar (31) | H17: Liv Kristin, Gekki ( Murmesterforeningen)
A19: 2015 (55 år) | B19: Mai | C19: Fly | D19: Schiphol | E19: Roma | F19: Roma | H19: Liv Kristin Gekki ( Murmesterforenigen )
B20: Mai | C20: Fly | D20: Schiphol | E20: Split | F20: Kroatia | H20: Liv kristin Gekki Bjørn, Kari, Børre,Unini, Frank, Svanhild, Per, Wenke,
B21: Desember | C21: Fly og Cruise | D21: London,Bankok,Miami | E21: U.S.A, Haiti (29), Jamiica (30), Mexico | F21: Ft Lauderdale, Key West,Key Largo | H21: Liv kristin, Gekki, Helga, Josh, Liv Cameron, Johan Caspian, Heidi, Peder, Håkon, Demi
A23: 2014 | B23: Juni | C23: Fly | D23: Schiphol, Geneve | E23: Frankrike | F23: Annecy | H23: Liv Kristin, Gekki, Stein, Hilde, Kassa, Lizzy, Asbjørn, Ranghild, Reidar, Mari
B24: Mai | C24: Fly | E24: Polen (28) | F24: Gedansk | H24: Liv Kristin, Gekki, Bjørn, Kari, Tom Suland og broen,Svanhild, Frank
A25: 2013 | B25: Juni | C25: Fly og Cruise | D25: Schiphol,Venezia | E25: Italia, Hellas, Kroatia (27) | F25: Venezia,Corfu, Dubrownick, Olympos, Athen | H25: Liv kristin, Gekki
B26: April | C26: Fly | D26: Kastrup | E26: Italia, | F26: Sinketerra, Portofino | H26: Liv kristin, Gekki, Stein, Hilde, Kassa, Reidar, Asbjørn Ranghild
A27: 2012 | B27: September | C27: Fly | D27: Kastrup | E27: Belgia | F27: Brussel | H27: Gekki, Tangen byggfag
B28: Mai | C28: Fly | D28: Kastrup | E28: Frankrike | F28: Paris | H28: Liv Kristin, Gekki ( murmesterforningen)
A29: 2011 | B29: Juni | C29: Fly | D29: Wien (Østerike ) Minsk | E29: Hviterussland (26) | F29: Minsk | H29: Liv kristin,Gekki, Stein, Hilde, Jan, Kristin, Asbjørn, Ranghild, Reidar, Mari, Karstein Lizzy
A31: 2010 (50 år) | B31: Juni | C31: Fly og Cruise | D31: Schiphol,New York,Miami | E31: U.S.A. Bahams (23), St. Thomas (24), St Morten (25) | F31: Jomfruøyene, New York, Pennsylvania | H31: Liv Kristin, Gekki
B32: Mai | C32: Fly | D32: Schipool | E32: Italia | F32: Cesillia | H32: Liv kristin, Gekki ( Murmesterforeningen)
A33: 2009 | B33: Juni | C33: Fly | D33: Alanya | E33: Tyrika (22) | F33: Side, Pamalokkule | H33: Liv kristin, Gekki, Heidi, Håkon
A35: 2008
A37: 2007 | B37: Desember | C37: Fly | D37: Schiphol, Singapore, Brisbane | E37: Australia | F37: Brisbane, Great Barrier Reef | H37: Liv kristin, Heidi, ( barendåp)
B38: September | C38: Fly | D38: Kastrup | E38: Tyskland | F38: Berlin | H38: Gekki ( Tangen vidergående)
A39: 2006 | B39: Desember | C39: Fly | D39: Schiphol, Singapore, Sydney | E39: Australia (21) | F39: Sydney, Brisbane, Cold Coast | H39: Liv Kristin, Gekki
A41: 2005 (45 år) | B41: Mai | C41: Fly | D41: Schiphol. | E41: Tjekkia | F41: Praha | H41: Liv Kristin, Gekki ( Murmesterforeningen)
A43: 2004 | B43: Juli | C43: Fly | D43: Schiphol, New York, Miami, Las vegas | E43: U.S.A. | F43: Pennsylvania,Florida,Nevada, Arizona,California | H43: Liv kristin, Gekki. Heidi, Håkon
A45: 2003
A47: 2002 | B47: Juni | C47: Fly | E47: Hellas (Remython) | F47: Chania,Knossos, Elafonissis | H47: Liv kristin, Gekki, Helga, Heidi, Håkon
A49: 2001 | B49: September | C49: Fly | D49: Kastrup | E49: Spania | F49: Barcelona | H49: Gekki ( Tangen/ byggfag Kvadraturen skole
A51: 2000 (40 år)
A53: 1999
A55: 1998 | B55: August | C55: Fly | D55: Kristiansand, Praha | E55: Tjekkia | F55: Praha | H55: Liv kristin, Gekki
A57: 1997 | B57: September | C57: Fly | D57: Oslo, Paris | E57: Frankrike | F57: Paris | H57: Liv kristin, Gekki
A59: 1996 | B59: Desember | C59: Fly | D59: Oslo,Gatwik | E59: England | F59: London | H59: Liv kristin, Gekki
A61: 1995 (35 år)
A63: 1994 | B63: Mars | C63: Fly | E63: Spania ( Grandka ) | F63: Tres Vidas, Playa Ingles, | H63: Liv kristin, Gekki, Heidi, Håkon
A65: 1993
A67: 1992
A69: 1991 | B69: Juli | C69: Fly, Hurtigruta, Tog | E69: Trondheim | F69: Bødø | H69: Liv kristin, Gekki, Helga
A71: 1990 (30 år) | B71: Juli | C71: Båt,Bil | E71: Danmark, Tyskland | F71: Rim Røme, Sylt | H71: Liv kristin, Gekki, Helga, Mamma, Pappa
A73: 1989
A75: 1988
A77: 1987
A79: 1986 | B79: September | C79: Buss, båt | E79: England | F79: Essex | H79: Gekki ( Frisbee landslaget EM)
A81: 1985 (25 år) | B81: Juli | C81: Tog Interrail | E81: Tyskland++++++ | F81: Obertraum | H81: Gekki, Steinar ( Interail )
B82: August | C82: Buss | E82: Østerike
A83: 1984 | B83: Februar | C83: Fly | E83: Spania (21)( Grandka ) | F83: LasPalmas, Puerto Rico | H83: Gekki, Stein Jarl, Morten, Reidar
B84: August | C84: Tog Interrail | E84: Sweits (20) | F84: Luzern | H84: Gekki, Steinar,Asbjørn ( Frisbee VM )
A85: 1983 | B85: Juni | C85: Fly , Kastrup | D85: København | E85: Danmark | H85: Gekki
A87: 1982 | B87: August-Desember | C87: Fly | D87: Oslo, New York | E87: U.S.A. (17), Mexico (18) canada (19) | F87: 34 stater | H87: Gekki, Robert, Vidar,Reidar
A89: 1981 | B89: Jan-juni | C89: Fly 6 tur retur Bardefoss | H89: Gekki ( Militæret )
A91: 1980 (20 år) | B91: Juni-Juli | C91: Tog Interrail | E91: Tyskland (5) ( Nederland (6) Belgia (7) Frankrik(8) Monaco(9) Italia (10) Vatikanet ( 11) Hellas(12) Israel (13) Egypt (14) Joguslavia(15) Østerike (16) | H91: Gekki, Stein, Morten,Reidar,Magnhild
A93: 1979 | B93: Juli | C93: Fly ( Første flytur) | D93: Molde | E93: Norge | F93: Molde | H93: Gekki, Husom, Jesusfestival
A95: 1978 | B95: Mai | C95: Båt | D95: Hirsthals | E95: Danmark (4) | H95: Gekki ( GMU venner)
A97: 1977 | B97: August | C97: Buss | D97: Høgaberg | E97: Sverige (3) | F97: Høgaberg | H97: Gekki ( speridertur)
A99: 1976 | B99: Juli | C99: Båt | D99: Newcastle | E99: England (2) | F99: Birmingham,London, York | H99: Gekki ( Speridertur)

Sheet Tegneserier 1940-09
A1: Tittel-1940-2009 | C1: Årstall periode | E1: Antall | F1: snitt ca kr VFN | G1: Pris | H1: antall/solgt | I1: Oppbevaring
A2: Se og les | C2: 1940 | E2: 0 | G2: 0 | H2: 1
A3: Skippern Store | C3: 1940 | E3: 10 | G3: 1450 | H3: 1
A4: Spøk og Spenning | C4: 1940 | E4: 3 | G4: 350 | H4: 2
A5: Alle Gutters serieblad | C5: 1950 | E5: 13 | G5: 5950
A6: Daffy | C6: 1950 | E6: 32 | G6: 1950 | H6: 12
A7: Dennis | C7: 1950 | E7: 1 | G7: 100
A8: Epos | C8: 1950 | E8: 4 | G8: 800 | H8: 2
A9: Fix og Foxi | C9: 1950 | E9: 0 | G9: 0 | H9: 1
A10: Hauk | C10: 1950 | E10: 22 | G10: 2225 | H10: 13
A11: Hoppalong Cassidy | C11: 1950 | E11: 0 | G11: 0 | H11: 16
A12: Roy Rogers | C12: 1950 | E12: 88 | G12: 11100 | H12: 3
A13: Seriemagasinet store | C13: 1950 | E13: 16 | G13: 1950 | H13: 13
A14: Skippern Store | C14: 1950 | E14: 81 | G14: 6025 | H14: 9
A15: Skippern Vanlieg stør | C15: 1950 | E15: 136 | G15: 6000 | H15: 3
A16: Spøk og Spenning | C16: 1950 | E16: 9 | G16: 1000 | H16: 12
A17: Tom og Jerry | C17: 1950 | E17: 1 | G17: 150
A18: Alt i bilder | C18: 1960 | E18: 60 | G18: 10350 | H18: 6
A19: Buffalo | C19: 1960 | E19: 0 | G19: 0 | H19: 0
A20: Daffy | C20: 1960 | E20: 183 | G20: 11900 | H20: 303
A21: Dennis | C21: 1960 | E21: 41 | G21: 2950 | H21: 4
A22: Detektivserien | C22: 1960 | E22: 0 | G22: 0 | H22: 3
A23: Doggy | C23: 1960 | E23: 2 | G23: 50 | H23: 1
A24: Familien Flint | C24: 1960 | E24: 70 | G24: 3800 | H24: 1
A25: Film paraden | C25: 1960 | E25: 2 | G25: 115 | H25: 7
A26: Flipper | C26: 1960 | E26: 4 | G26: 475
A27: Hakke hakkespett | C27: 1960 | E27: 3 | G27: 575 | H27: 5
A28: Helvan og Halvan | C28: 1960 | E28: 10 | G28: 675
A29: Illustrerte klassikere | B29: alle | C29: 1960 | E29: 264 | G29: 29000 | H29: 94
A30: Illustrerte klass dobbe | B30: alle | C30: 1960 | E30: 26 | G30: 3925 | H30: 8
A31: James Bond | C31: 1960 | E31: 1 | G31: 300
A32: Jungel Jim | C32: 1960 | E32: 4 | G32: 500 | H32: 1
A33: Konk | C33: 1960 | E33: 11 | G33: 1800
A34: Lassie | C34: 1960 | E34: 10 | G34: 1200
A35: Lille Lulu | C35: 1960 | E35: 8 | G35: 1250
A36: Maverick | C36: 1960 | E36: 1 | G36: 150
A37: Ranch | C37: 1960 | E37: 6 | G37: 475 | H37: 15
A38: Robin Hood | C38: 1960 | E38: 1 | G38: 250
A39: Scotty Mc tape | C39: 1960 | E39: 1 | G39: 500
A40: Sheriff | C40: 1960 | E40: 4 | G40: 550
A41: Skippern Vanlieg stør | C41: 1960 | E41: 2 | G41: 250 | H41: 3
A42: Star Western | C42: 1960 | E42: 3 | G42: 325 | H42: 1
A43: Tarzan | C43: 1960 | E43: 2 | G43: 275 | H43: 1
A44: Tempo | C44: 1960 | E44: 187 | G44: 11700 | H44: 73
A45: Tomahawk | C45: 1960 | E45: 1 | G45: 50
A46: Topp Serien | C46: 1960 | E46: 0 | G46: 0 | H46: 1
A47: TV Serien | C47: 1960 | E47: 0 | G47: 0 | H47: 1
A48: Verdens mest spenn | C48: 1960 | E48: 0 | G48: 0 | H48: 1
A49: Vi vant Ville vesten | C49: 1960 | E49: 1 | G49: 300 | H49: 1
A50: Happy | C50: 1969 | E50: 16 | G50: 1925 | H50: 10
A51: Agent X9 | C51: 1970 | E51: 18 | G51: 725 | H51: 37
A52: Allers månedshefte | C52: 1970 | E52: 17 | G52: 1125 | H52: 3
A53: Atlantic spesial | C53: 1970 | E53: 17 | G53: 1775 | H53: 6
A54: Barbapapa | C54: 1970 | E54: 17 | G54: 1100 | H54: 4
A55: Bamse | C55: 1970 | E55: 1 | G55: 150
A56: Bessie | C56: 1970 | E56: 62 | G56: 2750 | H56: 9
A57: Billy | C57: 1970 | E57: 22 | G57: 5475 | H57: 35
A58: Binky | C58: 1970 | E58: 34 | G58: 2150
A59: Bob Crockett | C59: 1970 | E59: 8 | G59: 680
A60: Bonanza | C60: 1970 | E60: 1 | G60: 125 | H60: 1
A61: Brumle | C61: 1970 | E61: 18 | G61: 795
A62: Buster | C62: 1970 | E62: 49 | G62: 3000 | H62: 13 | I62: Kjeller
A63: Calimaro | C63: 1970 | E63: 0 | G63: 0 | H63: 1
A64: Colt | C64: 1970 | E64: 5 | G64: 200 | H64: 5
A65: Comandoes tverrfor | C65: 1970 | E65: 10 | G65: 1150 | H65: 6
A66: Dennis | C66: 1970 | E66: 70 | G66: 2800 | H66: 23
A67: Doktor Dyregod | C67: 1970 | E67: 1 | G67: 75 | H67: 1
A68: Edderkoppen | C68: 1970 | E68: 2 | G68: 160 | H68: 5
A69: Elefantgutten | C69: 1970 | E69: 1 | G69: 150
A70: Familien Flint | C70: 1970 | E70: 38 | G70: 1550
A71: Fantasine underground | C71: 1970 | E71: 20 | G71: 1000 | H71: 5
A72: Fantastiske 4 | C72: 1970 | E72: 16 | G72: 1900 | H72: 18
A73: FBI | C73: 1970 | E73: 1 | G73: 20
A74: Feite Freddy | C74: 1970 | E74: 0 | G74: 0 | H74: 1
A75: Felix | C75: 1970 | E75: 1 | G75: 125 | H75: 2
A76: Flax | C76: 1970 | E76: 4 | G76: 525 | H76: 1
A77: Fotball | C77: 1970 | E77: 5 | G77: 305
A78: Frico Kid | C78: 1970 | E78: 6 | G78: 275 | H78: 6
A79: Gigant | C79: 1970 | E79: 43 | G79: 2250 | H79: 10
A80: Gjengen | C80: 1970 | E80: 4 | G80: 200 | H80: 2
A81: Gøy | C81: 1970 | E81: 4 | G81: 200
A82: Hakke hakkespett | C82: 1970 | E82: 121 | G82: 6750 | H82: 21
A83: Happy | C83: 1970 | E83: 5 | G83: 420
A84: Helgenen | C84: 1970 | E84: 95 | G84: 5875 | H84: 11
A85: Helvan og Halvan | C85: 1970 | E85: 58 | G85: 6475 | H85: 16
A86: Illustrerte klass Stjerne | C86: 1970 | E86: 29 | G86: 2525 | H86: 8
A87: Jackie | C87: 1970 | E87: 3 | G87: 255
A88: James Bond | C88: 1970 | E88: 3 | G88: 150 | H88: 6
A89: Kansas | C89: 1970 | E89: 0 | G89: 1 | H89: 3
A90: Konk | C90: 1970 | E90: 19 | G90: 925 | H90: 20
A91: Korak | C91: 1970 | E91: 25 | G91: 2225 | H91: 4
A92: Kruttrøyk | C92: 1970 | E92: 0 | G92: 0 | H92: 20
A93: Lajban | C93: 1970 | E93: 6 | G93: 400 | H93: 6
A94: Lynvingen | C94: 1970 | E94: 22 | G94: 900 | H94: 87
A95: Mafia | C95: 1970 | E95: 2 | G95: 75 | H95: 5
A96: Min Hest | C96: 1970 | E96: 18 | G96: 1660
A97: Min Hund | C97: 1970 | E97: 10 | G97: 905
A98: Ola gutt | C98: 1970 | E98: 0 | G98: 0 | H98: 1
A99: Paul temple | C99: 1970 | E99: 1 | G99: 75
A100: Pellefant | C100: 1970 | E100: 2 | G100: 225
A101: Pink panter | C101: 1970 | E101: 10 | G101: 730
A102: Ranch | C102: 1970 | E102: 41 | G102: 5000 | H102: 34
A103: Reno kid | C103: 1970 | E103: 0 | G103: 0 | H103: 1
A104: Seriemegasinet store | C104: 1970 | E104: 1 | G104: 75 | H104: 4
A105: Serie nytt | C105: 1970 | E105: 1 | G105: 50 | H105: 6
A106: Serie Bladet | C106: 1970 | E106: 32 | G106: 2750 | H106: 13
A107: Serie Spesial | C107: 1970 | E107: 7 | G107: 375
A108: Shazam | C108: 1970 | E108: 0 | G108: 0 | H108: 12
A109: Skippern Vanlieg stør | C109: 1970 | E109: 7 | G109: 990
A110: Skrekk | C110: 1970 | E110: 13 | G110: 1600 | H110: 5
A111: Skubbidu | C111: 1970 | E111: 3 | G111: 225
A112: Snurre/Sprett | C112: 1970 | E112: 97 | G112: 3650 | H112: 2
A113: Sprøyt | C113: 1970 | E113: 2 | G113: 100 | H113: 3
A114: Superboy | C114: 1970 | E114: 106 | G114: 7325 | H114: 36
A115: Supermann | C115: 1970 | E115: 99 | G115: 3750 | H115: 77
A116: Sølvpilen | C116: 1970 | E116: 150 | G116: 5700 | H116: 30
A117: Tarzan | C117: 1970 | E117: 110 | G117: 3775 | H117: 126
A118: Tempo | C118: 1970 | E118: 960 | G118: 45200 | H118: 176
A119: Texas Stort format | C119: 1970 | E119: 14 | G119: 600 | H119: 5
A120: Tomahawk | C120: 1970 | E120: 15 | G120: 850 | H120: 21
A121: Tumac | C121: 1970 | E121: 17 | G121: 600 | H121: 7
A122: Vill Vest stort format | C122: 1970 | E122: 48 | G122: 2300 | H122: 9
A123: Yakari | C123: 1970 | E123: 1 | G123: 100
A124: Action magasinet | C124: 1980 | E124: 0 | G124: 0 | H124: 1
A125: Alf | C125: 1980 | E125: 0 | G125: 0 | H125: 5
A126: Apache | C126: 1980 | E126: 51 | G126: 2200 | H126: 12
A127: Archie | C127: 1980 | E127: 52 | G127: 3400 | H127: 16
A128: Atlantic spesial | C128: 1980 | E128: 5 | G128: 275 | H128: 2
A129: Attack | C129: 1980 | E129: 4 | G129: 125
A130: Bamse | C130: 1980 | E130: 3 | G130: 75 | H130: 19
A131: Batman | C131: 1980 | E131: 16 | G131: 800 | H131: 15
A132: Betty Bop | C132: 1980 | E132: 1 | G132: 30 | H132: 1
A133: Betty og Doris | C133: 1980 | E133: 2 | G133: 90
A134: Billy | C134: 1980 | E134: 159 | F134: 10 | G134: 1550 | H134: 61 | I134: Kjeller/Helga
A135: Binky | C135: 1980 | E135: 25 | G135: 925
A136: Blondie | C136: 1980 | E136: 12 | G136: 540 | H136: 9
A137: Boing | C137: 1980 | E137: 53 | G137: 1620 | I137: Kjeller
A138: Bobo | C138: 1980 | E138: 1 | G138: 50
A139: Bravestar | C139: 1980 | E139: 0 | G139: 0 | H139: 1
A140: Breed | C140: 1980 | E140: 1 | G140: 20
A141: Buffalo Bill | C141: 1980 | E141: 30 | G141: 1700 | H141: 1
A142: Buster | C142: 1980 | E142: 76 | G142: 2485 | I142: Kjeller
A143: Caliber | C143: 1980 | E143: 21 | G143: 1100 | H143: 4
A144: Cartoon Nettwork | C144: 1980 | E144: 1 | G144: 50
A145: Colt | C145: 1980 | E145: 93 | G145: 3900 | H145: 26
A146: Conan | C146: 1980 | E146: 4 | G146: 950 | H146: 13
A147: Conny | C147: 1980 | E147: 0 | G147: 0 | H147: 1
A148: Cosmix | C148: 1980 | E148: 20 | G148: 400 | I148: Kjeller
A149: Daffy | C149: 1980 | E149: 14 | G149: 800 | H149: 1
A150: Darkness | C150: 1980 | E150: 6 | G150: 325
A151: Demonen | C151: 1980 | E151: 73 | G151: 3900 | H151: 5
A152: Dennis | C152: 1980 | E152: 31 | G152: 850
A153: Dido | C153: 1980 | E153: 1 | G153: 125
A154: Dommer Dredd | C154: 1980 | E154: 7 | G154: 250 | H154: 12
A155: Don Martin | C155: 1980 | E155: 17 | G155: 775
A156: Dracula | C156: 1980 | E156: 3 | G156: 75 | H156: 15
A157: Edderkoppen | C157: 1980 | E157: 176 | G157: 13500 | H157: 69
A158: Ernie | C158: 1980 | E158: 100 | F158: 10 | G158: 2001 | I158: Kjeller/Helga
A159: Fantasy | C159: 1980 | E159: 12 | G159: 900
A160: Fantasine underground | C160: 1980 | E160: 150 | F160: 10 | G160: 1500 | H160: 2
A161: Fantastiske 4 | C161: 1980 | E161: 23 | G161: 750 | H161: 17
A162: Fem på eventyr | C162: 1980 | E162: 7 | G162: 230
A163: Garfild | C163: 1980 | E163: 44 | G163: 1400
A164: Garfild med Orson | C164: 1980 | E164: 10 | G164: 400
A165: Gigant | C165: 1980 | E165: 73 | G165: 2550 | H165: 17
A166: Giveaway | C166: 1980 | E166: 8 | G166: 450
A167: Gjengen og jeg | C167: 1980 | E167: 1 | G167: 50
A168: Goliat | C168: 1980 | E168: 11 | G168: 285
A169: Grev Dracula | C169: 1980 | E169: 2 | G169: 70
A170: Groo | C170: 1980 | E170: 3 | G170: 150 | H170: 15
A171: Hakke hakkespett | C171: 1980 | E171: 42 | G171: 1500 | H171: 1
A172: Helgenen | C172: 1980 | E172: 127 | G172: 3600 | H172: 4
A173: Helvan og Halvan | C173: 1980 | E173: 9 | G173: 175 | H173: 1
A174: Hulk | C174: 1980 | E174: 64 | G174: 3050 | H174: 59
A175: Humor og kanari | C175: 1980 | E175: 2 | G175: 70 | H175: 3
A176: Humor paraden | C176: 1980 | E176: 2 | G176: 85
A177: Hårek den hardbalne | C177: 1980 | E177: 21 | G177: 1075
A178: Hårek serieparade | C178: 1980 | E178: 1 | G178: 35
A179: Illustrerte kl store/mine | C179: 1980 | E179: 37 | G179: 2425 | H179: 6
A180: Indiana Jones | C180: 1980 | E180: 35 | G180: 2075 | H180: 2
A181: Iskalde grøss | C181: 1980 | E181: 106 | G181: 4900 | H181: 19
A182: James Bond | C182: 1980 | E182: 145 | G182: 4650 | H182: 10
A183: Johan Hex | C183: 1980 | E183: 37 | G183: 1200 | H183: 2
A184: Julia Jones | C184: 1980 | E184: 1 | G184: 25 | H184: 1
A185: Julius og venne hans | C185: 1980 | E185: 9 | G185: 525
A186: Kazar | C186: 1980 | E186: 2 | G186: 100 | H186: 1
A187: Kobra | C187: 1980 | E187: 7 | G187: 290
A188: Korak | C188: 1980 | E188: 44 | G188: 1200 | H188: 3
A189: Lady Hulk | C189: 1980 | E189: 3 | G189: 150 | H189: 9
A190: Lassie | C190: 1980 | E190: 8 | G190: 250
A191: Lille Lulu | C191: 1980 | E191: 2 | G191: 100
A192: Lovens voktere ( Supe | C192: 1980 | E192: 1 | G192: 75
A193: Lyn Gordon | C193: 1980 | E193: 40 | G193: 2225 | H193: 12
A194: Lynvingen | C194: 1980 | E194: 28 | G194: 1200 | H194: 30
A195: Mad | C195: 1980 | E195: 137 | F195: 15 | G195: 2050 | H195: 12 | I195: Kjeller
A196: Magnum/Spesial | C196: 1980 | E196: 194 | F196: 15 | G196: 2910 | H196: 46 | I196: Kjeller
A197: Marvel spesial/superh | C197: 1980 | E197: 4 | G197: 200 | H197: 1
A198: Mjaurits | C198: 1980 | E198: 7 | G198: 275
A199: Mumien | C199: 1980 | E199: 6 | G199: 250 | H199: 1
A200: Månebaronen | C200: 1980 | E200: 16 | G200: 1250 | H200: 9
... 67 more rows

Sheet Walt Disney
A1: Tittel- Walt Disney | C1: Utgivel/Årstall | E1: Antall | F1: ca pris/snitt/anta | G1: Pris | I1: solgt/antall
A2: Store Show | C2: 1950 | E2: 0 | G2: 0 | I2: 3
A3: Walt Dinseys Serier/presenterer | C3: 1950 | E3: 108 | G3: 26975 | I3: 20
A4: Donald Duck | C4: 1952 | E4: 0 | G4: 0 | I4: 2
A5: Donald Duck | C5: 1953 | E5: 0 | G5: 0 | I5: 3
A6: Donald Duck | C6: 1954 | E6: 0 | G6: 0 | I6: 5
A7: Donald Duck | C7: 1955 | E7: 2 | G7: 650 | I7: 54
A8: Donald Duck | C8: 1956 | E8: 1 | G8: 50 | I8: 21
A9: Donald Duck | C9: 1957 | E9: 22 | G9: 2725 | I9: 36
A10: Donald Duck | C10: 1958 | E10: 59 | G10: 6275 | I10: 64
A11: Donald Duck | C11: 1959 | E11: 75 | G11: 4850 | I11: 106
A12: Donald Duck | C12: 1960 | E12: 64 | G12: 4550 | I12: 43
A13: Store Show | C13: 1960 | E13: 8 | G13: 1650 | I13: 4
A14: WDS Månedshefte | C14: 1960 | E14: 4 | G14: 350 | I14: 11
A15: Donald Duck | C15: 1961 | E15: 120 | G15: 9500 | I15: 120
A16: Donald Duck | C16: 1962 | E16: 140 | G16: 11150 | I16: 87
A17: Donald Duck | C17: 1963 | E17: 123 | G17: 11600 | I17: 71
A18: Donald Duck | C18: 1964 | E18: 75 | G18: 8100 | I18: 67
A19: Donald Duck | C19: 1965 | E19: 35 | G19: 3300 | I19: 119
A20: Donald Duck | C20: 1966 | E20: 4 | G20: 350 | I20: 93
A21: Donald Duck | C21: 1967 | E21: 15 | G21: 2725 | I21: 94
A22: Donald Duck | C22: 1968 | E22: 44 | G22: 4175 | I22: 78
A23: Donald Duck | C23: 1969 | E23: 47 | G23: 2425 | I23: 68
A24: Donald Duck | C24: 1970 | E24: 177 | G24: 8975 | I24: 69
A25: Bestemor Duck godnatthist | C25: 1970 | E25: 3 | G25: 225 | I25: 1
A26: Disneyland | C26: 1970 | E26: 27 | G26: 1125 | I26: 9
A27: Donald spesial | C27: 1970 | E27: 112 | G27: 4200 | I27: 4
A28: Donald julehefte | C28: 1970 | E28: 11 | G28: 750
A29: Donald Pocket | C29: 1970 | E29: 15 | F29: 50 | G29: 750 | I29: 18
A30: Store Show | C30: 1970 | E30: 30 | G30: 1450 | I30: 1
A31: Fant Julehefte | C31: 1970 | E31: 5 | G31: 340
A32: Langbein album | C32: 1970 | E32: 15 | G32: 1000 | I32: 1
A33: Onkel Skrue Månedsblad | C33: 1970 | E33: 81 | G33: 4700
A34: WDS Månedshefte | C34: 1970 | E34: 111 | G34: 3625 | I34: 32
A35: Walt Disney Beste historier | C35: 1970 | E35: 26 | G35: 4900
A36: Walt Disneys godbiter | C36: 1970 | E36: 51 | G36: 3425 | I36: 2
A37: Donald Duck | C37: 1971 | E37: 106 | G37: 7425 | I37: 53
A38: Donald Duck | C38: 1972 | E38: 75 | G38: 2100 | I38: 40
A39: Donald Duck | C39: 1973 | E39: 115 | G39: 3800 | I39: 44
A40: Donald Duck | C40: 1974 | E40: 54 | G40: 1775 | I40: 38
A41: Donald Duck | C41: 1975 | E41: 224 | G41: 8175 | I41: 30
A42: Donald Duck | C42: 1976 | E42: 235 | G42: 7350 | I42: 49
A43: Donald Duck | C43: 1977 | E43: 179 | G43: 7175 | I43: 19
A44: Donald Duck | C44: 1978 | E44: 231 | F44: 40 | G44: 9240 | I44: 6 | J44: Kjeller uten bilag 8 stk ikke tatt med i sumeringen
A45: Donald Duck | C45: 1979 | E45: 266 | F45: 35 | G45: 9300 | I45: 54 | J45: Kjeller uten bilag 18 stk ikke tatt med i sumeringen
A46: Donald Duck | C46: 1980 | E46: 276 | F46: 35 | G46: 9670 | I46: 52 | J46: Kjeller uten bilag 45 stk ikke tatt med i sumeringen
A47: B- Gjengen pocket | C47: 1980 | E47: 13 | G47: 950
A48: B- Gjengen Månedsblad | C48: 1980 | E48: 46 | G48: 1490
A49: Donald eggskall | C49: 1980 | E49: 2 | G49: 100
A50: Donald tidsmaskinen | C50: 1980 | E50: 2 | G50: 175
A51: Donald for 30 år siden | C51: 1980 | E51: 118 | G51: 5000
A52: Donald i toppform | C52: 1980 | E52: 1 | G52: 150
A53: Donald Pocket | C53: 1980 | E53: 181 | F53: 30 | G53: 5430 | I53: 19
A54: Elleville Eventyr | C54: 1980 | E54: 25 | G54: 900 | I54: 1 | J54: Kjeller
A55: Kopi av 1/48 | C55: 1980 | E55: 5 | F55: Orginalplast | G55: 1000
A56: Kopi av 1/48 | C56: 1980 | E56: 10 | G56: 250
A57: Langbein album | C57: 1980 | E57: 3 | G57: 225 | I57: 1
A58: Mesterdetektiven Basil | C58: 1980 | E58: 2 | G58: 150
A59: Onkel Skrue Månedsblad | C59: 1980 | E59: 212 | G59: 7400 | I59: 1
A60: Onkel skrue album | C60: 1980 | E60: 5 | G60: 150
A61: Petter Smart tenkehefte | C61: 1980 | E61: 2 | G61: 100 | I61: 1
A62: Skrue Pocket | C62: 1980 | E62: 20 | G62: 1225
A63: Walt Disney Beste historier | C63: 1980 | E63: 74 | G63: 7700 | J63: Kjeller
A64: Walt Disneys godbiter | C64: 1980 | E64: 49 | G64: 3400
A65: Zorro | C65: 1980 | E65: 4 | G65: 200 | I65: 1
A66: Donald Duck | C66: 1981 | E66: 237 | F66: 30 | G66: 7100 | I66: 55 | J66: Kjeller uten bilag 33 stk ikke tatt med i sumeringen
A67: Donald Duck | C67: 1982 | E67: 314 | F67: 30 | G67: 9420 | I67: 25 | J67: Kjeller uten bilag 28 stk ikke tatt med i sumeringen
A68: Donald Duck | C68: 1983 | E68: 133 | F68: 25 | G68: 3300 | I68: 38 | J68: Kjeller uten bilag 60 stk ikke tatt med i sumeringen
A69: Donald Duck | C69: 1984 | E69: 141 | F69: 20 | G69: 2220 | I69: 34 | J69: Kjeller uten bilag 44 stk ikke tatt med i sumeringen
A70: Donald Duck | C70: 1985 | E70: 133 | F70: 15 | G70: 1990 | I70: 27 | J70: Kjeller uten bilag 68 stk ikke tatt med i sumeringen
A71: Donald Duck | C71: 1986 | E71: 193 | F71: 15 | G71: 2890 | I71: 50 | J71: Kjeller uten bilag 112 stk ikke tatt med i sumeringen
A72: Donald Duck | C72: 1987 | E72: 191 | F72: 15 | G72: 2865 | I72: 20 | J72: Kjeller uten bilag 150 stk ikke tatt med i sumeringen
A73: Donald Duck | C73: 1988 | E73: 182 | F73: 15 | G73: 2730 | I73: 17 | J73: Kjeller uten bilag 112 stk ikke tatt med i sumeringen
A74: Donald Duck | C74: 1989 | E74: 209 | F74: 15 | G74: 3135 | I74: 8 | J74: Kjeller uten bilag 96 stk ikke tatt med i sumeringen
A75: Donald Duck | C75: 1990 | E75: 200 | F75: 10 | G75: 2000 | I75: 6 | J75: Kjeller uten bilag 80 stk ikke tatt med i sumeringen
A76: Bruno Bjørn | C76: 1990 | E76: 4 | G76: 500
A77: De glade 80 åra | C77: 1990 | E77: 2 | G77: 100 | J77: Kjeller
A78: Beste historier | C78: 1990 | E78: 1 | G78: 100 | I78: 2
A79: Julealbum | C79: 1990 | E79: 3 | G79: 200
A80: Klassiske avisstriper | C80: 1990 | E80: 10 | F80: 100 | G80: 1000
A81: Duck tales | C81: 1990 | E81: 12 | F81: 10 | G81: 120
A82: Fantdonald | C82: 1990 | E82: 4 | G82: 200
A83: Hakkepettkomandoen | C83: 1990 | E83: 3 | G83: 120
A84: Mammutbøker | C84: 1990 | E84: 5 | G84: 500
A85: Mikke krim | C85: 1990 | E85: 0 | G85: 0 | I85: 5
A86: Ole Brum julhefte | C86: 1990 | E86: 4 | G86: 155 | J86: kjeller
A87: Donald Duck | C87: 1991 | E87: 173 | F87: 10 | G87: 1730 | I87: 8 | J87: Kjeller uten bilag 93 stk ikke tatt med i sumerinegen
A88: Donald Duck | C88: 1992 | E88: 221 | F88: 10 | G88: 2210 | I88: 2 | J88: Kjeller uten bilag 53 Vurdres som søppel ikke tatt med i sumeringen
A89: Donald Duck | C89: 1993 | E89: 198 | F89: 10 | G89: 1980 | I89: 11 | J89: Kjeller uten bilag 52 Vurdres som søppel ikke tatt med i sumeringen
A90: Donald Duck | C90: 1994 | E90: 188 | F90: 10 | G90: 1880 | I90: 20 | J90: Kjeller uten bilag 16
A91: Donald Duck | C91: 1995 | E91: 178 | F91: 10 | G91: 1780 | I91: 11 | J91: Kjeller uten bilag 9
A92: Donald Duck | C92: 1996 | E92: 132 | F92: 10 | G92: 1320 | I92: 6 | J92: Kjeller uten bilag 18
A93: Donald Duck | C93: 1997 | E93: 148 | F93: 10 | G93: 1480 | I93: 7 | J93: Kjeller uten bilag 52
A94: Donald Duck | C94: 1998 | E94: 130 | F94: 10 | G94: 1300 | I94: 5 | J94: Kjeller uten bilag 51
A95: Donald Duck | C95: 1999 | E95: 185 | F95: 10 | G95: 1850 | I95: 4 | J95: Kjeller uten bilag 58
A96: Donald Duck | C96: 2000 | E96: 109 | F96: 10 | G96: 1090 | I96: 1 | J96: Kjeller uten bilag 8
A97: Carl Barks jul | C97: 2000 | E97: 3 | G97: 150
A98: Komplette årganger | C98: 2000 | E98: 40 | F98: 100 | G98: 4000 | J98: Kjeller
A99: Den store Donaldboken | C99: 2000 | E99: 2 | G99: 500 | J99: Kjeller
A100: God gammel årgang | C100: 2000 | E100: 6 | G100: 300
A101: Walt Disneys julehefte | C101: 2000 | E101: 5 | G101: 200
A102: Donald Duck | C102: 2001 | E102: 119 | F102: 10 | G102: 1190 | I102: 14 | J102: Kjeller uten bilag 7
A103: Donald Duck | C103: 2002 | E103: 40 | F103: 10 | G103: 400 | I103: 3 | J103: Kjeller uten bilag 5
A104: Donald Duck | C104: 2003 | E104: 28 | F104: 10 | G104: 280 | I104: 1 | J104: Kjeller uten bilag 7
A105: Donald Duck | C105: 2004 | E105: 117 | F105: 10 | G105: 1170 | I105: 1 | J105: Kjeller uten bilag 22
A106: Donald Duck | C106: 2005 | E106: 90 | F106: 10 | G106: 900
A107: Donald Pocket | C107: 1990-10-01 | E107: 200 | F107: 20 | G107: 4000 | I107: 36 | J107: Noen i kjeller/Helga
A108: Kjempebøker | C108: 1970-80 | E108: 10 | F108: 300 | G108: 2100 | I108: 7 | J108: Kjeler
A109: Carl Barks bøker | C109: 1980-00 | E109: 25 | F109: 200 | G109: 5000 | I109: 3 | J109: Kjeller
A110: Donald julehefte | C110: 1980-00 | E110: 16 | G110: 475 | I110: 5
A111: Store Show | C111: 1980-00 | E111: 51 | F111: 20 | G111: 1020 | J111: Noen i kjeller
A112: Donald ekstranummer | C112: 1980-90 | E112: 263 | F112: 10 | G112: 2630 | I112: 7 | J112: Kjeller 44 stk ikke tatt med i sumeringen
A113: Mikke Mus | C113: 1980-90 | E113: 193 | F113: 10 | G113: 1930 | I113: 5
A114: Mikke Mus album | C114: 1980-90 | E114: 7 | G114: 350
A115: Mikke Mus julehefte | C115: 1980-90 | E115: 25 | F115: 20 | G115: 500
A116: Ole Dole Doffen album | C116: 1980-90 | E116: 4 | G116: 300
A117: Walt Disneys julebøker | C117: 1990-00 | E117: 3 | F117: 50 | G117: 150
A118: Donald Temapocket | C118: 2000-20 | E118: 47 | F118: 20 | G118: 940 | I118: 6 | J118: Kjeller
E119: =SUM(E2:E118) -> 9082
G121: =SUM(G2:G120) -> 324620
I123: =SUM(I2:I122) -> 2165

Sheet Fantomet
A1: Fantomet/album | C1: Utgivelse/årstall | D1: Antall | E1: Ca.snitt | F1: Pris | H1: solgt/antall
A2: Fantom heftet | C2: 1950 | D2: 1 | F2: 200
A3: Fantomet | C3: 1970 | D3: 0 | F3: 0 | H3: 1
A4: Julehefter/Årsalbum | C4: 1970 | D4: 10 | F4: 755
A5: Kjempealbum/bok | C5: 1970 | D5: 6 | F5: 1275
A6: Fantomet | C6: 1971 | D6: 6 | F6: 500 | H6: 4
A7: Fantomet | C7: 1972 | D7: 4 | F7: 350 | H7: 4
A8: Fantomet | C8: 1973 | D8: 45 | F8: 5600 | H8: 25
A9: Fantomet | C9: 1974 | D9: 73 | F9: 4875 | H9: 16
A10: Fantomet | C10: 1975 | D10: 101 | F10: 12050 | H10: 14
A11: Fantomet | C11: 1976 | D11: 89 | F11: 6975 | H11: 8
A12: Fantomet | C12: 1977 | D12: 75 | F12: 4225 | H12: 20
A13: Fantomet | C13: 1978 | D13: 105 | F13: 5900 | H13: 14
A14: Fantomet | C14: 1979 | D14: 89 | F14: 3600 | H14: 11
A15: Fantomet | C15: 1980 | D15: 57 | F15: 3100 | H15: 24
A16: Julehefter/Årsalbum | C16: 1980 | D16: 42 | F16: 2250
A17: Sommer spesial 85 | C17: 1980 | D17: 8 | F17: 530
A18: Flame Spesial-album | C18: 1980 | D18: 3 | F18: 300
A19: Fangen i Himalaya | C19: 1980 | D19: 5 | F19: 550
A20: Klassiske eventyr | C20: 1980 | D20: 15 | F20: 1185
A21: Fantomets krønikere | C21: 1980 | D21: 9 | F21: 550 | H21: 1 | I21: Kjeller
A22: Fantomet permer | C22: 1980 | D22: 0 | F22: 0 | H22: 18
A23: Fantomet | C23: 1981 | D23: 60 | F23: 3300 | H23: 17
A24: Fantomet | C24: 1982 | D24: 56 | F24: 2800 | H24: 10
A25: Fantomet | C25: 1983 | D25: 57 | F25: 3850 | H25: 19
A26: Fantomet | C26: 1984 | D26: 45 | F26: 2075 | H26: 24
A27: Fantomet | C27: 1985 | D27: 110 | F27: 6575 | H27: 13
A28: Fantomet | C28: 1986 | D28: 86 | F28: 4450 | H28: 2
A29: Fantomet | C29: 1987 | D29: 84 | F29: 4950 | H29: 3
A30: Fantomet | C30: 1988 | D30: 101 | F30: 4650 | H30: 6
A31: Fantomet | C31: 1989 | D31: 95 | F31: 5275 | H31: 2
A32: Fantomet | C32: 1990 | D32: 138 | F32: 7700 | H32: 2
A33: Jubileumssesial 94 | C33: 1990 | D33: 3 | F33: 150
A34: Fantomets krønikere | C34: 1990 | D34: 99 | E34: 20 | F34: 1980 | H34: 2 | I34: Kjeller
A35: Spesialalbum 1-13 | C35: 1990 | D35: 36 | F35: 3100 | H35: 7
A36: Spesialutgaver 1-10 | C36: 1990 | D36: 30 | F36: 2405
A37: Fantomet | C37: 1991 | D37: 94 | F37: 4500 | H37: 2
A38: Fantomet | C38: 1992 | D38: 96 | F38: 4050 | H38: 5
A39: Fantomet | C39: 1993 | D39: 104 | E39: 25 | F39: 2600 | I39: Kjeller
A40: Fantomet | C40: 1994 | D40: 98 | E40: 25 | F40: 2450 | H40: 6 | I40: Kjeller
A41: Fantomet | C41: 1995 | D41: 78 | E41: 25 | F41: 1950 | H41: 5 | I41: Kjeller
A42: Fantomet | C42: 1996 | D42: 88 | E42: 25 | F42: 2200 | H42: 1 | I42: Kjeller
A43: Fantomet | C43: 1997 | D43: 80 | E43: 25 | F43: 2000 | I43: Kjeller
A44: Fantomet | C44: 1998 | D44: 80 | E44: 25 | F44: 1975 | H44: 1 | I44: Kjeller
A45: Fantomet | C45: 1999 | D45: 44 | E45: 25 | F45: 1100 | H45: 7 | I45: Kjeller
A46: Fantomet | C46: 2000 | D46: 59 | E46: 25 | F46: 1475 | H46: 22 | I46: Kjeller
A47: Opptrrykk av orginalserien | C47: 2000 | D47: 4 | F47: 600 | I47: Kjeller
A48: Fantomets krønikere | C48: 2000 | D48: 25 | E48: 20 | F48: 500 | I48: Kjeller
A49: Krønikerbøker romertall | C49: 2000 | D49: 5 | E49: 150 | F49: 750 | H49: 5 | I49: Kjeller
A50: Krønikerbøker Luxus utg | C50: 2000 | D50: 4 | E50: 150 | F50: 600 | H50: 25 | I50: Kjeller
A51: Fantomet | C51: 2001 | D51: 60 | E51: 25 | F51: 1500 | H51: 14 | I51: Kjeller
A52: Fantomet | C52: 2002 | D52: 39 | E52: 25 | F52: 975 | H52: 18 | I52: Kjeller
A53: Fantomet | C53: 2003 | D53: 43 | E53: 25 | F53: 1075 | H53: 16 | I53: Kjeller
A54: Fantomet | C54: 2004 | D54: 41 | E54: 25 | F54: 1025 | H54: 19 | I54: Kjeller
A55: Fantomet | C55: 2005 | D55: 61 | E55: 25 | F55: 1525 | H55: 13 | I55: Kjeller
A56: Fantomet | C56: 2006 | D56: 36 | E56: 25 | F56: 850 | H56: 8 | I56: Kjeller
A57: Fantomet | C57: 2007 | D57: 34 | E57: 25 | F57: 850 | H57: 8 | I57: Kjeller
A58: Fantomet | C58: 2008 | D58: 16 | E58: 25 | F58: 400 | H58: 7 | I58: Kjeller
A59: Fantomet | C59: 2009 | D59: 7 | E59: 25 | F59: 175 | H59: 6 | I59: Kjeller
A60: Fantomet | C60: 2010 | D60: 6 | E60: 25 | F60: 150 | H60: 6 | I60: Kjeller
A61: Softcoverbøker | C61: 2010 | D61: 2 | F61: 300 | I61: Kjeller
A62: Gullalderen | C62: 2010 | D62: 4 | F62: 500 | I62: Kjeller
A63: Fantomet | C63: 2011 | D63: 5 | E63: 25 | F63: 125 | H63: 5 | I63: Kjeller
A64: Fantomet | C64: 2012 | D64: 4 | E64: 25 | F64: 100 | H64: 7 | I64: Kjeller
A65: Fantomet | C65: 2013 | D65: 3 | E65: 25 | F65: 75 | H65: 7 | I65: Kjeller
A66: Fantomet | C66: 2014 | D66: 2 | E66: 25 | F66: 50 | I66: Kjeller
A67: Fantomet | C67: 2015 | D67: 10 | E67: 25 | F67: 250 | I67: Kjeller
C68: 2016 | D68: 5 | E68: 25 | F68: 125 | H68: 8 | I68: Kjeller
A69: Amerikanske Fantomet | C69: 1960-70 | D69: 15 | F69: 1750 | I69: Kjeller
A70: Seriepocket | C70: 1970-90 | D70: 72 | F70: 4150 | H70: 4
A71: Kjempealbum/bok | C71: 1980-00 | D71: 2 | F71: 400
D74: =SUM(D2:D73) -> 3069
F75: =SUM(F2:F74) -> 151130 | H75: =SUM(H2:H74) -> 492

Sheet KrigsbladerTexas format
A1: Krigsblader/Texasformat | C1: Utgivelsesår/årstall | E1: Antall | F1: Ca. snittpris | G1: Pris | I1: solgt antall
A2: Seriemagasinet Cowb | C2: 1950 | E2: 24 | G2: 4350 | I2: 6
A3: Texas | C3: 1950 | E3: 222 | G3: 16100 | I3: 13
A4: Alarm | C4: 1960 | E4: 23 | G4: 1875 | I4: 18
A5: Andy Capp | C5: 1960 | E5: 5 | G5: 600
A6: Bajonett | C6: 1960 | E6: 13 | G6: 1250 | I6: 16
A7: Comanndoes Serie 1 | C7: 1960 | E7: 135 | G7: 6850 | I7: 145
A8: Den store krigen | C8: 1960 | E8: 3 | G8: 150 | I8: 25
A9: Detektiv | C9: 1960 | E9: 0 | G9: 0 | I9: 8
A10: Fredhøis Tegneserieromaner | C10: 1960 | E10: 18 | G10: 3750 | I10: 3
A11: Front serien | C11: 1960 | E11: 31 | G11: 2500 | I11: 17
A12: Hemmelig Brigade | C12: 1960 | E12: 0 | G12: 0 | I12: 3
A13: Kamp Serien | C13: 1960 | E13: 0 | G13: 0 | I13: 30
A14: Min Melodi | C14: 1960 | E14: 2 | G14: 275
A15: På Vingene | C15: 1960 | E15: 2 | G15: 175 | I15: 40
A16: Seriemagasinet | C16: 1960 | E16: 108 | G16: 12850 | I16: 36
A17: Spion 13 | C17: 1960 | E17: 31 | G17: 1925 | I17: 10
A18: Texas | C18: 1960 | E18: 106 | G18: 4650 | I18: 52
A19: Tomahawk | C19: 1960 | E19: 28 | G19: 3900 | I19: 5
A20: Action Serien | C20: 1970 | E20: 15 | G20: 470 | I20: 1
A21: Akim | C21: 1970 | E21: 15 | G21: 800 | I21: 2
A22: Alarm | C22: 1970 | E22: 39 | G22: 2275 | I22: 6
A23: Andy Capp | C23: 1970 | E23: 5 | G23: 725
A24: Bajonett | C24: 1970 | E24: 12 | G24: 950 | I24: 12
A25: Bibelen i tegneserier | C25: 1970 | E25: 5 | G25: 625
A26: Big Bull | C26: 1970 | E26: 4 | G26: 225
A27: Comic Pocket serie 1 | C27: 1970 | E27: 8 | G27: 485
A28: Comanndoes Serie 2 | C28: 1970 | E28: 58 | G28: 2450 | I28: 66
A29: Dennis pocket | C29: 1970 | E29: 1 | G29: 75
A30: Ensomme rytter | C30: 1970 | E30: 23 | G30: 1875
A31: Fredhøis tegneseriebøker | C31: 1970 | E31: 1 | G31: 600 | I31: 24
A32: Front serien | C32: 1970 | E32: 20 | G32: 1000 | I32: 10
A33: Granat Serien | C33: 1970 | E33: 14 | G33: 700 | I33: 8
A34: Granat Serien | C34: 1970 | E34: 120 | G34: 4000
A35: Happy Biff | C35: 1970 | E35: 2 | G35: 750
A36: Helvan og Halvan pocket | C36: 1970 | E36: 3 | G36: 425
A37: Hjerterevyen | C37: 1970 | E37: 69 | G37: 3000 | I37: 32
A38: Hårek Berserk pocket | C38: 1970 | E38: 4 | G38: 400
A39: Jeppe og gjengen | C39: 1970 | E39: 0 | G39: 0 | I39: 4
A40: Jet boken rød | C40: 1970 | E40: 1 | G40: 100
A41: Jøsseball Glommerik | C41: 1970 | E41: 1 | G41: 500
A42: Kalar | C42: 1970 | E42: 24 | G42: 1285
A43: Kamp Serien | C43: 1970 | E43: 15 | G43: 575 | I43: 15
A44: Ken Parker | C44: 1970 | E44: 0 | G44: 0 | I44: 9
A45: Knøttene tverrpocket | C45: 1970 | E45: 5 | G45: 800
A46: Lasso | C46: 1970 | E46: 1 | G46: 150
A47: Lillemor | C47: 1970 | E47: 10 | G47: 545
A48: Mad pocket | C48: 1970 | E48: 4 | G48: 650
A49: Marshal Serie 1-2 bok | C49: 1970 | E49: 9 | G49: 570
A50: Nero Kid | C50: 1970 | E50: 3 | G50: 190
A51: Pioner serie 1 | C51: 1970 | E51: 73 | G51: 2850 | I51: 3
A52: På Vingene | C52: 1970 | E52: 64 | G52: 1375 | I52: 55
A53: Sabotør Q5 | C53: 1970 | E53: 16 | G53: 400 | I53: 22
A54: Se Biblioteket | C54: 1970 | E54: 10 | G54: 750
A55: Seriemagasinet | C55: 1970 | E55: 28 | G55: 1250 | I55: 52
A56: Serie Pocket | C56: 1970 | E56: 15 | G56: 2425 | I56: 35
A57: Sheriff | C57: 1970 | E57: 9 | G57: 475 | I57: 9
A58: Spider | C58: 1970 | E58: 28 | G58: 1200 | I58: 14
A59: Spion 13 | C59: 1970 | E59: 43 | G59: 1700 | I59: 11
A60: Starlet | C60: 1970 | E60: 3 | G60: 90
A61: Tarzan pocket | C61: 1970 | E61: 3 | G61: 175
A62: Texas | C62: 1970 | E62: 19 | G62: 670 | I62: 3
A63: Tex Willer | C63: 1970 | E63: 92 | G63: 13800 | I63: 91
A64: Tom og Jerry liten kjempebok | C64: 1970 | E64: 1 | G64: 750
A65: Tuppen | C65: 1970 | E65: 17 | G65: 625 | I65: 2
A66: Action Serien | C66: 1980 | E66: 80 | G66: 2850 | I66: 19
A67: Bessie | C67: 1980 | E67: 3 | G67: 160
A68: Edderkoppen superseriepocket | C68: 1980 | E68: 0 | G68: 0 | I68: 5
A69: Flipp og Flopp pocket | C69: 1980 | E69: 4 | G69: 190 | I69: 2
A70: Froskene | C70: 1980 | E70: 1 | G70: 75
A71: Gevions seriebøker | C71: 1980 | E71: 2 | G71: 50
A72: Hjerterevyen | C72: 1980 | E72: 57 | G72: 2400
A73: Hulk Superseriepocket | C73: 1980 | E73: 0 | G73: 0 | I73: 2
A74: Hårek den hardbalne | C74: 1980 | E74: 8 | G74: 720
A75: Kamp Serien | C75: 1980 | E75: 275 | G75: 10650 | I75: 281
A76: Lillemor | C76: 1980 | E76: 37 | G76: 1225 | I76: 4
A77: Lucky Luke ekstra | C77: 1980 | E77: 1 | G77: 125
A78: Mad pocket | C78: 1980 | E78: 39 | G78: 1380 | I78: 2
A79: Marvel pocket | C79: 1980 | E79: 1 | G79: 75 | I79: 1
A80: Mini Moro | C80: 1980 | E80: 13 | G80: 475
A81: Peos beste | C81: 1980 | E81: 3 | G81: 115
A82: Pioner serie 2 | C82: 1980 | E82: 69 | G82: 2850 | I82: 15
A83: Pusur Tevrrpocket 1-2 | C83: 1980 | E83: 7 | G83: 330
A84: På Vingene | C84: 1980 | E84: 200 | G84: 8700 | I84: 90
A85: Sabotør Q6 | C85: 1980 | E85: 50 | G85: 1550 | I85: 17
A86: Semic superpocket | C86: 1980 | E86: 5 | G86: 375 | I86: 3
A87: Serie Pocket | C87: 1980 | E87: 72 | F87: 20 | G87: 1440 | I87: 48
A88: Skippern | C88: 1980 | E88: 1 | G88: 50
A89: Snake | C89: 1980 | E89: 3 | G89: 150
A90: Snurre pocket | C90: 1980 | E90: 2 | G90: 80
A91: Spion 13 | C91: 1980 | E91: 18 | G91: 550 | I91: 1
A92: Starlet | C92: 1980 | E92: 12 | G92: 250
A93: Sølvpilen pocket | C93: 1980 | E93: 3 | G93: 175
A94: Tex Willer | C94: 1980 | E94: 300 | F94: 25 | G94: 7500 | J94: 50% i kjeller
A95: Trollmannen fra Id | C95: 1980 | E95: 1 | G95: 40
A96: Tuppen | C96: 1980 | E96: 52 | G96: 1550 | I96: 21
A97: Agent X9 pocket | C97: 1990 | E97: 8 | G97: 240
A98: Comic Pocket serie 2 | C98: 1990 | E98: 1 | G98: 50 | I98: 4
A99: Ernie tverropcket | C99: 1990 | E99: 7 | G99: 350
A100: Lauzier | C100: 1990 | E100: 2 | G100: 115
A101: Leiesoldaten | C101: 1990 | E101: 1 | G101: 40
A102: Lupo Alberto | C102: 1990 | E102: 1 | G102: 40
A103: Pyton Tverrpocket | C103: 1990 | E103: 4 | G103: 300
A104: Semic tegneseriepocket | C104: 1990 | E104: 9 | G104: 625
A105: Tex Willer | C105: 1990 | E105: 150 | F105: 25 | G105: 3750 | I105: 46
A106: Tex Spesial stort format | C106: 1990 | E106: 51 | F106: 100 | G106: 5100 | I106: 12 | J106: Kjeller
A107: Alvefolket | C107: 2000 | E107: 2 | G107: 200
A108: Conan Pocket serien | C108: 2000 | E108: 5 | G108: 140
A109: Kamp og Komando | C109: 2000 | E109: 1 | G109: 50
A110: Pioner serie 3 | C110: 2000 | E110: 5 | F110: 75 | G110: 425 | I110: 46
A111: Tex Willer | C111: 2000 | E111: 38 | F111: 25 | G111: 950 | I111: 82
A112: Tex Maxi | C112: 2000 | E112: 98 | F112: 75 | G112: 7350 | I112: 83 | J112: Kjeller
A113: Tex Kronologisk | C113: 2000 | E113: 50 | F113: 100 | G113: 5000 | I113: 32 | J113: Kjeller
A114: Tex div andre pocket | C114: 2010 | E114: 6 | F114: 75 | G114: 450 | I114: 16 | J114: Kjeller
E117: =SUM(E2:E116) -> 3421
G118: =SUM(G2:G117) -> 188185
I119: =SUM(I2:I118) -> 1745

Sheet PrærieVill vest
A1: 3030 | B1: Utgivelsesår | C1: Antall | D1: Snitt pris | E1: Pris | G1: solgt
A2: Vill Vest | B2: 1953 | C2: 7 | E2: 1100 | G2: 19
A3: Vill Vest | B3: 1954 | C3: 23 | E3: 1600 | G3: 10
A4: Vill Vest | B4: 1955 | C4: 154 | E4: 9000 | G4: 9
A5: Vill Vest | B5: 1956 | C5: 150 | E5: 8000 | G5: 10
A6: Vill Vest | B6: 1957 | C6: 198 | E6: 10000 | G6: 4
A7: Vill Vest | B7: 1958 | C7: 210 | E7: 12000 | G7: 12
A8: Vill Vest | B8: 1959 | C8: 206 | E8: 16750 | G8: 8
A9: Vill Vest | B9: 1960 | C9: 71 | E9: 3900 | G9: 18
A10: Vill Vest | B10: 1961 | C10: 72 | E10: 4000 | G10: 28
A11: Vill Vest | B11: 1962 | C11: 75 | E11: 2650 | G11: 31
A12: Vill Vest | B12: 1963 | C12: 20 | E12: 625 | G12: 22
A13: Vill Vest | B13: 1964 | C13: 37 | E13: 1500 | G13: 42
A14: Vill Vest | B14: 1965 | C14: 59 | E14: 2250 | G14: 17
A15: Vill Vest | B15: 1966 | C15: 45 | E15: 1200 | G15: 32
A16: Vill Vest | B16: 1967 | C16: 109 | E16: 4450 | G16: 2
A17: Vill Vest | B17: 1968 | C17: 36 | E17: 1750 | G17: 3
A18: Vill Vest | B18: 1969 | C18: 132 | E18: 7550 | G18: 32
A19: Vill Vest | B19: 1970 | C19: 184 | E19: 9500 | G19: 5
A20: Vill Vest | B20: 1971 | C20: 133 | E20: 9000 | G20: 6
A21: Vill Vest | B21: 1972 | C21: 14 | E21: 1200 | G21: 7
A22: Præriebladet | B22: 1957 | C22: 2 | E22: 1200 | G22: 5
A23: Præriebladet | B23: 1958 | C23: 14 | E23: 2150 | G23: 12
A24: Præriebladet | B24: 1959 | C24: 50 | E24: 7400 | G24: 4
A25: Præriebladet | B25: 1960 | C25: 27 | E25: 2450 | G25: 35
A26: Præriebladet | B26: 1961 | C26: 18 | E26: 1700 | G26: 56
A27: Præriebladet | B27: 1962 | C27: 16 | E27: 1175 | G27: 13
A28: Præriebladet | B28: 1963 | C28: 29 | E28: 1250 | G28: 3
A29: Præriebladet | B29: 1964 | C29: 65 | E29: 2500 | G29: 1
A30: Præriebladet | B30: 1965 | C30: 42 | E30: 1900 | G30: 14
A31: Præriebladet | B31: 1966 | C31: 57 | E31: 2900 | G31: 1
A32: Præriebladet | B32: 1967 | C32: 30 | E32: 1350
A33: Præriebladet | B33: 1968 | C33: 37 | E33: 1600 | G33: 13
A34: Præriebladet | B34: 1969 | C34: 132 | E34: 8125 | G34: 29
A35: Præriebladet | B35: 1970 | C35: 119 | E35: 10175 | G35: 61
A36: Præriebladet | B36: 1971 | C36: 40 | E36: 2650 | G36: 44
A37: Præriebladet | B37: 1972 | C37: 17 | E37: 1925 | G37: 10
A38: Jukan | B38: 1954 | C38: 53 | E38: 3400 | G38: 6
A39: Jukan | B39: 1955 | C39: 78 | E39: 4000 | G39: 1
A40: Jukan | B40: 1956 | C40: 112 | E40: 4500
A41: Jukan | B41: 1957 | C41: 93 | E41: 3975 | G41: 1
A42: Jukan | B42: 1958 | C42: 32 | E42: 1800
A43: Jukan | B43: 1959 | C43: 71 | E43: 4500
A44: Jukan | B44: 1960 | C44: 73 | E44: 2600 | G44: 18
A45: Jukan | B45: 1961 | C45: 20 | E45: 750 | G45: 9
A46: Jukan | B46: 1962 | C46: 5 | E46: 110 | G46: 20
A47: Jukan | B47: 1963 | C47: 41 | E47: 1700 | G47: 1
A48: Jukan | B48: 1964 | C48: 49 | E48: 1900
A49: Jukan | B49: 1965 | C49: 42 | E49: 1700 | G49: 6
A50: Jukan | B50: 1966 | C50: 36 | E50: 1900 | G50: 10
A51: Jukan | B51: 1967 | C51: 22 | E51: 1500 | G51: 2
A52: Alle Gutters blad | B52: 1950 | C52: 0 | E52: 0 | G52: 2
A53: Harrongs Cowboy | B53: 1950 | C53: 3 | E53: 200
A54: Hoppalong Cassidy | B54: 1950 | C54: 44 | E54: 4330 | G54: 18
A55: Teddy | B55: 1960 | C55: 0 | E55: 0 | G55: 3
A56: Rex havets Fantom | B56: 1957 | C56: 27 | E56: 3900 | G56: 6
G59: =SUM(G2:G58) -> 721
C60: =SUM(C2:C59) -> 3431
E61: =SUM(E2:E60) -> 201240
